Workbook

Sheet Inputs
B2: High-Level NEM Rate Impact Analysis | D2: Rocky Mtn Power - Utah
B3: Inputs
B5: Model Structure
C6: Sector / Rate Class | D6: Residential
C7: Base Year | D7: 2015
C8: Real discount rate | D8: 0.055
C9: Study Period (Years) | D9: 20
B11: System Parameters
C12: Residential Sales (MWh) | D12: 6976758 | F12: EIA 861, 2013
C13: Residential Revenues ($) | D13: 758356800 | F13: EIA 861, 2013
C14: Number of Residential Customers (count) | D14: 733917 | F14: EIA 861, 2013
C15: Sales per customer (MWh) | D15: =D12/D14 -> 9.506194842 | F15: Residential Sales / # of Customers
C16: Customer growth rate | D16: 0.01 | F16: User input
C17: Electricity usage per customer growth rate | D17: 0 | F17: User input
B18: Rate Structure Parameters
C19: Energy Rate ($/MWh) | D19: =Reference!C18/Reference!C71*Reference!C70 -> 98.37075 | F19: Annual weighted average, RMP Residential rate tariff
C20: Customer ($/Month) | D20: =Reference!C7 -> 6 | F20: RMP Residential rate tariff
C21: Minimum Bill ($/Month) | D21: =Reference!C21 -> 8 | F21: RMP Residential rate tariff
C22: Fixed Portion of Energy Rate (%) | D22: 0.6666 | F22: RMP Presentation See: MW
B23: PV NEM System Parameters
C24: Average PV installed capacity (MW, DC) | D24: 0.005 | F24: User input
C25: Unit capacity factor (%) | D25: =Reference!C57/(8760*Reference!C32) -> 0.1687509657 | F25: NREL PV Watts (SLC, UT) | G25: Warning: You have entered a capacity and/or capacity factor that results in the annual generation being greater than annual consumption, which would trigger RMP's minimm bill. This version of the model doesn't account for minimum bills.
C26: Unit generation (MWh) | D26: =8760*D25*D24 -> 7.391292297 | F26: Calculation based on CF and Capacity
C27: Percent of customers adding DG PV per year | D27: =DataTable!C6 -> 0.005 | F27: User input
C28: Number of years with additional DG PV | D28: 10 | F28: User input
B29: Levelized Avoided Cost Inputs
C30: Avoided energy ($/MWh) | D30: 60 | F30: Avoided fuel, variable O&M, and line losses.
C31: Avoided generation capacity capital costs ($/MWh) | D31: 0 | F31: Capital cost of generation to meet peak load.
C32: Avoided transmission capital costs ($/MWh) | D32: 0 | F32: Cost of money savings resulting from defferring T&D capacity additions.
C33: Avoided distribution capital costs ($/MWh) | D33: 0 | F33: Cost of money savings resulting from defferring T&D capacity additions. Default from CPR 2014 (assumes zero avoided distribution)
C34: Avoided environmental Costs ($/MWh) | D34: 0 | F34: Costs to comply with environemetnal regulations and policy objectives. Default from CPR 2014.
C35: Fuel price guarantee/avoided risk ($/MWh) | D35: 0 | F35: Cost of eliminating uncertainty in fuel price fluctuations. Default $0.00
C37: Variable Avoided Costs ($/MWh) | D37: =DataTable!B6 -> 60 | F37: Includes avoided energy, avoided environmental, and fuel price guarantee
C38: Fixed Avoided Costs ($/MWh) | F38: Includes avoided capital costs associated with generation and T&D capacity
C39: Total Avoided Costs ($/MWh) | D39: =SUM(D37:D38) -> 60 | F39: Sum of variable and fixed avoided costs
B40: Levelized Utility Cost of Solar Integration
C41: Integration Costs ($/MWh) | D41: 5 | F41: Per MWh of DG solar generation

Sheet Cost_Calculations
B1: Utah NEM Rate Impact Analysis | C1: Cost Calculations
E2: 2015 | F2: 2016 | G2: 2017 | H2: 2018 | I2: 2019 | J2: 2020 | K2: 2021 | L2: 2022 | M2: 2023 | N2: 2024 | O2: 2025 | P2: 2026 | Q2: 2027 | R2: 2028 | S2: 2029 | T2: 2030 | U2: 2031 | V2: 2032 | W2: 2033 | X2: 2034
C3: Universal
B4: Customers x customer growth rate | D4: Customers (# of customers) | E4: =Inputs!$D$14 -> 733917 | F4: =E4*(1+Inputs!$D$16) -> 741256.17 | G4: =F4*(1+Inputs!$D$16) -> 748668.7317 | H4: =G4*(1+Inputs!$D$16) -> 756155.419 | I4: =H4*(1+Inputs!$D$16) -> 763716.9732 | J4: =I4*(1+Inputs!$D$16) -> 771354.1429 | K4: =J4*(1+Inputs!$D$16) -> 779067.6844 | L4: =K4*(1+Inputs!$D$16) -> 786858.3612 | M4: =L4*(1+Inputs!$D$16) -> 794726.9448 | N4: =M4*(1+Inputs!$D$16) -> 802674.2143 | O4: =N4*(1+Inputs!$D$16) -> 810700.9564 | P4: =O4*(1+Inputs!$D$16) -> 818807.966 | Q4: =P4*(1+Inputs!$D$16) -> 826996.0456 | R4: =Q4*(1+Inputs!$D$16) -> 835266.0061 | S4: =R4*(1+Inputs!$D$16) -> 843618.6662 | T4: =S4*(1+Inputs!$D$16) -> 852054.8528 | U4: =T4*(1+Inputs!$D$16) -> 860575.4013 | V4: =U4*(1+Inputs!$D$16) -> 869181.1554 | W4: =V4*(1+Inputs!$D$16) -> 877872.9669 | X4: =W4*(1+Inputs!$D$16) -> 886651.6966
B5: Typical annual demand x demand growth rate | D5: Usage per customer (annual MWh / customer) | E5: =Inputs!$D$15 -> 9.506194842 | F5: =E5*(1+Inputs!$D$17) -> 9.506194842 | G5: =F5*(1+Inputs!$D$17) -> 9.506194842 | H5: =G5*(1+Inputs!$D$17) -> 9.506194842 | I5: =H5*(1+Inputs!$D$17) -> 9.506194842 | J5: =I5*(1+Inputs!$D$17) -> 9.506194842 | K5: =J5*(1+Inputs!$D$17) -> 9.506194842 | L5: =K5*(1+Inputs!$D$17) -> 9.506194842 | M5: =L5*(1+Inputs!$D$17) -> 9.506194842 | N5: =M5*(1+Inputs!$D$17) -> 9.506194842 | O5: =N5*(1+Inputs!$D$17) -> 9.506194842 | P5: =O5*(1+Inputs!$D$17) -> 9.506194842 | Q5: =P5*(1+Inputs!$D$17) -> 9.506194842 | R5: =Q5*(1+Inputs!$D$17) -> 9.506194842 | S5: =R5*(1+Inputs!$D$17) -> 9.506194842 | T5: =S5*(1+Inputs!$D$17) -> 9.506194842 | U5: =T5*(1+Inputs!$D$17) -> 9.506194842 | V5: =U5*(1+Inputs!$D$17) -> 9.506194842 | W5: =V5*(1+Inputs!$D$17) -> 9.506194842 | X5: =W5*(1+Inputs!$D$17) -> 9.506194842
D6: Total residential electricity usage (MWh) | E6: =E5*E4 -> 6976758 | F6: 7046525.58 | G6: 7116990.836 | H6: 7188160.744 | I6: 7260042.352 | J6: 7332642.775 | K6: 7405969.203 | L6: 7480028.895 | M6: 7554829.184 | N6: 7630377.476 | O6: 7706681.25 | P6: 7783748.063 | Q6: 7861585.544 | R6: 7940201.399 | S6: 8019603.413 | T6: 8099799.447 | U6: 8180797.442 | V6: 8262605.416 | W6: 8345231.47 | X6: 8428683.785
B8: Scenario calculations for no DGPV case | C8: No DG PV Case
B9: Forecasted sales | C9: Annual Sales
B10: Sales = Demand - customer generation | D10: Annual residential sales (MWh) | E10: =E6 -> 6976758 | F10: 7046525.58 | G10: 7116990.836 | H10: 7188160.744 | I10: 7260042.352 | J10: 7332642.775 | K10: 7405969.203 | L10: 7480028.895 | M10: 7554829.184 | N10: 7630377.476 | O10: 7706681.25 | P10: 7783748.063 | Q10: 7861585.544 | R10: 7940201.399 | S10: 8019603.413 | T10: 8099799.447 | U10: 8180797.442 | V10: 8262605.416 | W10: 8345231.47 | X10: 8428683.785
C11: Rates
B12: Fuel and Purchased Power Charge | D12: Energy Rate - variable portion ($/MWh) | E12: =Inputs!$D$19*(1-Inputs!$D$22) -> 32.79680805 | F12: =Inputs!$D$19*(1-Inputs!$D$22) -> 32.79680805 | G12: =Inputs!$D$19*(1-Inputs!$D$22) -> 32.79680805 | H12: =Inputs!$D$19*(1-Inputs!$D$22) -> 32.79680805 | I12: =Inputs!$D$19*(1-Inputs!$D$22) -> 32.79680805 | J12: =Inputs!$D$19*(1-Inputs!$D$22) -> 32.79680805 | K12: =Inputs!$D$19*(1-Inputs!$D$22) -> 32.79680805 | L12: =Inputs!$D$19*(1-Inputs!$D$22) -> 32.79680805 | M12: =Inputs!$D$19*(1-Inputs!$D$22) -> 32.79680805 | N12: =Inputs!$D$19*(1-Inputs!$D$22) -> 32.79680805 | O12: =Inputs!$D$19*(1-Inputs!$D$22) -> 32.79680805 | P12: =Inputs!$D$19*(1-Inputs!$D$22) -> 32.79680805 | Q12: =Inputs!$D$19*(1-Inputs!$D$22) -> 32.79680805 | R12: =Inputs!$D$19*(1-Inputs!$D$22) -> 32.79680805 | S12: =Inputs!$D$19*(1-Inputs!$D$22) -> 32.79680805 | T12: =Inputs!$D$19*(1-Inputs!$D$22) -> 32.79680805 | U12: =Inputs!$D$19*(1-Inputs!$D$22) -> 32.79680805 | V12: =Inputs!$D$19*(1-Inputs!$D$22) -> 32.79680805 | W12: =Inputs!$D$19*(1-Inputs!$D$22) -> 32.79680805 | X12: =Inputs!$D$19*(1-Inputs!$D$22) -> 32.79680805
B13: Energy rate times fixed portion | D13: Energy Rate - fixed portion ($/MWh) | E13: =Inputs!$D$19*(Inputs!$D$22) -> 65.57394195 | F13: =Inputs!$D$19*(Inputs!$D$22) -> 65.57394195 | G13: =Inputs!$D$19*(Inputs!$D$22) -> 65.57394195 | H13: =Inputs!$D$19*(Inputs!$D$22) -> 65.57394195 | I13: =Inputs!$D$19*(Inputs!$D$22) -> 65.57394195 | J13: =Inputs!$D$19*(Inputs!$D$22) -> 65.57394195 | K13: =Inputs!$D$19*(Inputs!$D$22) -> 65.57394195 | L13: =Inputs!$D$19*(Inputs!$D$22) -> 65.57394195 | M13: =Inputs!$D$19*(Inputs!$D$22) -> 65.57394195 | N13: =Inputs!$D$19*(Inputs!$D$22) -> 65.57394195 | O13: =Inputs!$D$19*(Inputs!$D$22) -> 65.57394195 | P13: =Inputs!$D$19*(Inputs!$D$22) -> 65.57394195 | Q13: =Inputs!$D$19*(Inputs!$D$22) -> 65.57394195 | R13: =Inputs!$D$19*(Inputs!$D$22) -> 65.57394195 | S13: =Inputs!$D$19*(Inputs!$D$22) -> 65.57394195 | T13: =Inputs!$D$19*(Inputs!$D$22) -> 65.57394195 | U13: =Inputs!$D$19*(Inputs!$D$22) -> 65.57394195 | V13: =Inputs!$D$19*(Inputs!$D$22) -> 65.57394195 | W13: =Inputs!$D$19*(Inputs!$D$22) -> 65.57394195 | X13: =Inputs!$D$19*(Inputs!$D$22) -> 65.57394195
B14: Sum of above | D14: Total Energy Rate ($/MWh) | E14: =E12+E13 -> 98.37075 | F14: 98.37075 | G14: 98.37075 | H14: 98.37075 | I14: 98.37075 | J14: 98.37075 | K14: 98.37075 | L14: 98.37075 | M14: 98.37075 | N14: 98.37075 | O14: 98.37075 | P14: 98.37075 | Q14: 98.37075 | R14: 98.37075 | S14: 98.37075 | T14: 98.37075 | U14: 98.37075 | V14: 98.37075 | W14: 98.37075 | X14: 98.37075
B15: Customer charge | D15: Customer ($/Month) | E15: =Reference!$C$7 -> 6 | F15: =Reference!$C$7 -> 6 | G15: =Reference!$C$7 -> 6 | H15: =Reference!$C$7 -> 6 | I15: =Reference!$C$7 -> 6 | J15: =Reference!$C$7 -> 6 | K15: =Reference!$C$7 -> 6 | L15: =Reference!$C$7 -> 6 | M15: =Reference!$C$7 -> 6 | N15: =Reference!$C$7 -> 6 | O15: =Reference!$C$7 -> 6 | P15: =Reference!$C$7 -> 6 | Q15: =Reference!$C$7 -> 6 | R15: =Reference!$C$7 -> 6 | S15: =Reference!$C$7 -> 6 | T15: =Reference!$C$7 -> 6 | U15: =Reference!$C$7 -> 6 | V15: =Reference!$C$7 -> 6 | W15: =Reference!$C$7 -> 6 | X15: =Reference!$C$7 -> 6
B16: Minimum bill | D16: Minimum bill ($) | E16: =Reference!$C$21 -> 8 | F16: =Reference!$C$21 -> 8 | G16: =Reference!$C$21 -> 8 | H16: =Reference!$C$21 -> 8 | I16: =Reference!$C$21 -> 8 | J16: =Reference!$C$21 -> 8 | K16: =Reference!$C$21 -> 8 | L16: =Reference!$C$21 -> 8 | M16: =Reference!$C$21 -> 8 | N16: =Reference!$C$21 -> 8 | O16: =Reference!$C$21 -> 8 | P16: =Reference!$C$21 -> 8 | Q16: =Reference!$C$21 -> 8 | R16: =Reference!$C$21 -> 8 | S16: =Reference!$C$21 -> 8 | T16: =Reference!$C$21 -> 8 | U16: =Reference!$C$21 -> 8 | V16: =Reference!$C$21 -> 8 | W16: =Reference!$C$21 -> 8 | X16: =Reference!$C$21 -> 8
B17: Forecasted Revenues | C17: Annual Revenues and Costs
B18: Energy sales x energy rate x var % | D18: Variable Revenues and Costs | E18: =(E12)*E10 -> 228815392.9 | F18: 231103546.9 | G18: 233414582.3 | H18: 235748728.2 | I18: 238106215.4 | J18: 240487277.6 | K18: 242892150.4 | L18: 245321071.9 | M18: 247774282.6 | N18: 250252025.4 | O18: 252754545.7 | P18: 255282091.1 | Q18: 257834912 | R18: 260413261.2 | S18: 263017393.8 | T18: 265647567.7 | U18: 268304043.4 | V18: 270987083.8 | W18: 273696954.7 | X18: 276433924.2
B19: Energy sales x energy rate x fixed % | D19: Fixed Revenues and Costs | E19: =(E13)*E10 -> 457493524.1 | F19: 462068459.3 | G19: 466689143.9 | H19: 471356035.4 | I19: 476069595.7 | J19: 480830291.7 | K19: 485638594.6 | L19: 490494980.5 | M19: 495399930.3 | N19: 500353929.6 | O19: 505357468.9 | P19: 510411043.6 | Q19: 515515154.1 | R19: 520670305.6 | S19: 525877008.7 | T19: 531135778.8 | U19: 536447136.5 | V19: 541811607.9 | W19: 547229724 | X19: 552702021.2
B20: Sum of fixed and variable | D20: Total Energy Rate Revenues and Costs | E20: =E18+E19 -> 686308917 | F20: 693172006.2 | G20: 700103726.3 | H20: 707104763.5 | I20: 714175811.2 | J20: 721317569.3 | K20: 728530745 | L20: 735816052.4 | M20: 743174212.9 | N20: 750605955.1 | O20: 758112014.6 | P20: 765693134.8 | Q20: 773350066.1 | R20: 781083566.8 | S20: 788894402.4 | T20: 796783346.5 | U20: 804751179.9 | V20: 812798691.7 | W20: 820926678.6 | X20: 829135945.4
B21: Customers x customer charge | D21: Customer Charge Revenues and Costs | E21: =E15*E4*12 -> 52842024 | F21: 53370444.24 | G21: 53904148.68 | H21: 54443190.17 | I21: 54987622.07 | J21: 55537498.29 | K21: 56092873.27 | L21: 56653802.01 | M21: 57220340.03 | N21: 57792543.43 | O21: 58370468.86 | P21: 58954173.55 | Q21: 59543715.29 | R21: 60139152.44 | S21: 60740543.96 | T21: 61347949.4 | U21: 61961428.9 | V21: 62581043.19 | W21: 63206853.62 | X21: 63838922.15
B22: Sum of Energy Rate and Customer Charge | D22: Total Revenues and Costs | E22: =E20+E21 -> 739150941 | F22: 746542450.4 | G22: 754007874.9 | H22: 761547953.7 | I22: 769163433.2 | J22: 776855067.6 | K22: 784623618.2 | L22: 792469854.4 | M22: 800394553 | N22: 808398498.5 | O22: 816482483.5 | P22: 824647308.3 | Q22: 832893781.4 | R22: 841222719.2 | S22: 849634946.4 | T22: 858131295.9 | U22: 866712608.8 | V22: 875379734.9 | W22: 884133532.3 | X22: 892974867.6
D23: Percent of total costs that are "fixed" | E23: =(E19+E21)/E22 -> 0.6904348216 | F23: 0.6904348216 | G23: 0.6904348216 | H23: 0.6904348216 | I23: 0.6904348216 | J23: 0.6904348216 | K23: 0.6904348216 | L23: 0.6904348216 | M23: 0.6904348216 | N23: 0.6904348216 | O23: 0.6904348216 | P23: 0.6904348216 | Q23: 0.6904348216 | R23: 0.6904348216 | S23: 0.6904348216 | T23: 0.6904348216 | U23: 0.6904348216 | V23: 0.6904348216 | W23: 0.6904348216 | X23: 0.6904348216
C25: With DG PV
B26: Forecasted sales | C26: Annual Sales
B27: % of customers with PV + growth rate | D27: Customers with PV (%) | E27: =Inputs!D27 -> 0.005 | F27: =MIN(E27+Inputs!$D$27,Inputs!$D$27*Inputs!$D$28) -> 0.01 | G27: =MIN(F27+Inputs!$D$27,Inputs!$D$27*Inputs!$D$28) -> 0.015 | H27: =MIN(G27+Inputs!$D$27,Inputs!$D$27*Inputs!$D$28) -> 0.02 | I27: =MIN(H27+Inputs!$D$27,Inputs!$D$27*Inputs!$D$28) -> 0.025 | J27: =MIN(I27+Inputs!$D$27,Inputs!$D$27*Inputs!$D$28) -> 0.03 | K27: =MIN(J27+Inputs!$D$27,Inputs!$D$27*Inputs!$D$28) -> 0.035 | L27: =MIN(K27+Inputs!$D$27,Inputs!$D$27*Inputs!$D$28) -> 0.04 | M27: =MIN(L27+Inputs!$D$27,Inputs!$D$27*Inputs!$D$28) -> 0.045 | N27: =MIN(M27+Inputs!$D$27,Inputs!$D$27*Inputs!$D$28) -> 0.05 | O27: =MIN(N27+Inputs!$D$27,Inputs!$D$27*Inputs!$D$28) -> 0.05 | P27: =MIN(O27+Inputs!$D$27,Inputs!$D$27*Inputs!$D$28) -> 0.05 | Q27: =MIN(P27+Inputs!$D$27,Inputs!$D$27*Inputs!$D$28) -> 0.05 | R27: =MIN(Q27+Inputs!$D$27,Inputs!$D$27*Inputs!$D$28) -> 0.05 | S27: =MIN(R27+Inputs!$D$27,Inputs!$D$27*Inputs!$D$28) -> 0.05 | T27: =MIN(S27+Inputs!$D$27,Inputs!$D$27*Inputs!$D$28) -> 0.05 | U27: =MIN(T27+Inputs!$D$27,Inputs!$D$27*Inputs!$D$28) -> 0.05 | V27: =MIN(U27+Inputs!$D$27,Inputs!$D$27*Inputs!$D$28) -> 0.05 | W27: =MIN(V27+Inputs!$D$27,Inputs!$D$27*Inputs!$D$28) -> 0.05 | X27: =MIN(W27+Inputs!$D$27,Inputs!$D$27*Inputs!$D$28) -> 0.05
B28: Customers x % with DGPV * typical DGPV gen | D28: Annual Customer PV Gen (MWh) | E28: =E4*E27*Inputs!$D$26 -> 27122.97535 | F28: =F4*F27*Inputs!$D$26 -> 54788.4102 | G28: =G4*G27*Inputs!$D$26 -> 83004.44145 | H28: =H4*H27*Inputs!$D$26 -> 111779.3145 | I28: =I4*I27*Inputs!$D$26 -> 141121.3845 | J28: =J4*J27*Inputs!$D$26 -> 171039.1181 | K28: =K4*K27*Inputs!$D$26 -> 201541.0941 | L28: =L4*L27*Inputs!$D$26 -> 232636.0058 | M28: =M4*M27*Inputs!$D$26 -> 264332.6616 | N28: =N4*N27*Inputs!$D$26 -> 296639.9869 | O28: =O4*O27*Inputs!$D$26 -> 299606.3867 | P28: =P4*P27*Inputs!$D$26 -> 302602.4506 | Q28: =Q4*Q27*Inputs!$D$26 -> 305628.4751 | R28: =R4*R27*Inputs!$D$26 -> 308684.7599 | S28: =S4*S27*Inputs!$D$26 -> 311771.6075 | T28: =T4*T27*Inputs!$D$26 -> 314889.3235 | U28: =U4*U27*Inputs!$D$26 -> 318038.2168 | V28: =V4*V27*Inputs!$D$26 -> 321218.5989 | W28: =W4*W27*Inputs!$D$26 -> 324430.7849 | X28: =X4*X27*Inputs!$D$26 -> 327675.0928
B29: Net Sales = Demand - customer generation | D29: Net annual residential sales [after PV] (MWh) | E29: =E6-E28 -> 6949635.025 | F29: 6991737.17 | G29: 7033986.394 | H29: 7076381.43 | I29: 7118920.967 | J29: 7161603.657 | K29: 7204428.109 | L29: 7247392.889 | M29: 7290496.522 | N29: 7333737.489 | O29: 7407074.864 | P29: 7481145.612 | Q29: 7555957.068 | R29: 7631516.639 | S29: 7707831.806 | T29: 7784910.124 | U29: 7862759.225 | V29: 7941386.817 | W29: 8020800.685 | X29: 8101008.692
D30: Installed DG PV (MW) | E30: =E27*E4*Inputs!$D$24 -> 18.347925 | F30: =F27*F4*Inputs!$D$24 -> 37.0628085 | G30: =G27*G4*Inputs!$D$24 -> 56.15015488 | H30: =H27*H4*Inputs!$D$24 -> 75.6155419 | I30: =I27*I4*Inputs!$D$24 -> 95.46462165 | J30: =J27*J4*Inputs!$D$24 -> 115.7031214 | K30: =K27*K4*Inputs!$D$24 -> 136.3368448 | L30: =L27*L4*Inputs!$D$24 -> 157.3716722 | M30: =M27*M4*Inputs!$D$24 -> 178.8135626 | N30: =N27*N4*Inputs!$D$24 -> 200.6685536 | O30: =O27*O4*Inputs!$D$24 -> 202.6752391 | P30: =P27*P4*Inputs!$D$24 -> 204.7019915 | Q30: =Q27*Q4*Inputs!$D$24 -> 206.7490114 | R30: =R27*R4*Inputs!$D$24 -> 208.8165015 | S30: =S27*S4*Inputs!$D$24 -> 210.9046665 | T30: =T27*T4*Inputs!$D$24 -> 213.0137132 | U30: =U27*U4*Inputs!$D$24 -> 215.1438503 | V30: =V27*V4*Inputs!$D$24 -> 217.2952888 | W30: =W27*W4*Inputs!$D$24 -> 219.4682417 | X30: =X27*X4*Inputs!$D$24 -> 221.6629241
C31: Rates
B32: New variable costs / net sales | D32: Energy Rate - variable portion ($/MWh) | E32: =E41/E29 -> 32.71015362 | F32: 32.62282016 | G32: 32.53479965 | H32: 32.44608394 | I32: 32.35666477 | J32: 32.26653375 | K32: 32.17568233 | L32: 32.08410184 | M32: 31.99178348 | N32: 31.89871829 | O32: 31.89871829 | P32: 31.89871829 | Q32: 31.89871829 | R32: 31.89871829 | S32: 31.89871829 | T32: 31.89871829 | U32: 31.89871829 | V32: 31.89871829 | W32: 31.89871829 | X32: 31.89871829
B33: New fixed costs / net sales | D33: Energy Rate - fixed portion ($/MWh) | E33: =E42/E29 -> 65.82986336 | F33: 66.08779022 | G33: 66.34774618 | H33: 66.60975529 | I33: 66.87384197 | J33: 67.14003102 | K33: 67.40834765 | L33: 67.67881748 | M33: 67.95146652 | N33: 68.22632122 | O33: 68.22632122 | P33: 68.22632122 | Q33: 68.22632122 | R33: 68.22632122 | S33: 68.22632122 | T33: 68.22632122 | U33: 68.22632122 | V33: 68.22632122 | W33: 68.22632122 | X33: 68.22632122
B34: Sum of above | D34: Total Energy Rate ($/kWh) | E34: =E33+E32 -> 98.54001699 | F34: 98.71061038 | G34: 98.88254583 | H34: 99.05583923 | I34: 99.23050674 | J34: 99.40656477 | K34: 99.58402998 | L34: 99.76291932 | M34: 99.94325 | N34: 100.1250395 | O34: 100.1250395 | P34: 100.1250395 | Q34: 100.1250395 | R34: 100.1250395 | S34: 100.1250395 | T34: 100.1250395 | U34: 100.1250395 | V34: 100.1250395 | W34: 100.1250395 | X34: 100.1250395
B35: Same as No DG PV | D35: Customer ($/Month) | E35: =Inputs!$D$20 -> 6 | F35: =Inputs!$D$20 -> 6 | G35: =Inputs!$D$20 -> 6 | H35: =Inputs!$D$20 -> 6 | I35: =Inputs!$D$20 -> 6 | J35: =Inputs!$D$20 -> 6 | K35: =Inputs!$D$20 -> 6 | L35: =Inputs!$D$20 -> 6 | M35: =Inputs!$D$20 -> 6 | N35: =Inputs!$D$20 -> 6 | O35: =Inputs!$D$20 -> 6 | P35: =Inputs!$D$20 -> 6 | Q35: =Inputs!$D$20 -> 6 | R35: =Inputs!$D$20 -> 6 | S35: =Inputs!$D$20 -> 6 | T35: =Inputs!$D$20 -> 6 | U35: =Inputs!$D$20 -> 6 | V35: =Inputs!$D$20 -> 6 | W35: =Inputs!$D$20 -> 6 | X35: =Inputs!$D$20 -> 6
B36: Same as No DG PV | D36: Minimum bill ($) | E36: =Inputs!$D$21 -> 8 | F36: =Inputs!$D$21 -> 8 | G36: =Inputs!$D$21 -> 8 | H36: =Inputs!$D$21 -> 8 | I36: =Inputs!$D$21 -> 8 | J36: =Inputs!$D$21 -> 8 | K36: =Inputs!$D$21 -> 8 | L36: =Inputs!$D$21 -> 8 | M36: =Inputs!$D$21 -> 8 | N36: =Inputs!$D$21 -> 8 | O36: =Inputs!$D$21 -> 8 | P36: =Inputs!$D$21 -> 8 | Q36: =Inputs!$D$21 -> 8 | R36: =Inputs!$D$21 -> 8 | S36: =Inputs!$D$21 -> 8 | T36: =Inputs!$D$21 -> 8 | U36: =Inputs!$D$21 -> 8 | V36: =Inputs!$D$21 -> 8 | W36: =Inputs!$D$21 -> 8 | X36: =Inputs!$D$21 -> 8
B37: Forecasted Revenues / Costs | C37: Annual Revenues and Costs
B38: Costs avoided | D38: Avoided costs - variable | E38: =(Inputs!$D$37)*E$28 -> 1627378.521 | F38: =(Inputs!$D$37)*F$28 -> 3287304.612 | G38: =(Inputs!$D$37)*G$28 -> 4980266.487 | H38: =(Inputs!$D$37)*H$28 -> 6706758.869 | I38: =(Inputs!$D$37)*I$28 -> 8467283.072 | J38: =(Inputs!$D$37)*J$28 -> 10262347.08 | K38: =(Inputs!$D$37)*K$28 -> 12092465.65 | L38: =(Inputs!$D$37)*L$28 -> 13958160.35 | M38: =(Inputs!$D$37)*M$28 -> 15859959.69 | N38: =(Inputs!$D$37)*N$28 -> 17798399.21 | O38: =(Inputs!$D$37)*O$28 -> 17976383.2 | P38: =(Inputs!$D$37)*P$28 -> 18156147.04 | Q38: =(Inputs!$D$37)*Q$28 -> 18337708.51 | R38: =(Inputs!$D$37)*R$28 -> 18521085.59 | S38: =(Inputs!$D$37)*S$28 -> 18706296.45 | T38: =(Inputs!$D$37)*T$28 -> 18893359.41 | U38: =(Inputs!$D$37)*U$28 -> 19082293.01 | V38: =(Inputs!$D$37)*V$28 -> 19273115.94 | W38: =(Inputs!$D$37)*W$28 -> 19465847.1 | X38: =(Inputs!$D$37)*X$28 -> 19660505.57
B39: Costs avoided | D39: Avoided costs - fixed | E39: =(Inputs!$D$38)*E$28 -> 0 | F39: =(Inputs!$D$38)*F$28 -> 0 | G39: =(Inputs!$D$38)*G$28 -> 0 | H39: =(Inputs!$D$38)*H$28 -> 0 | I39: =(Inputs!$D$38)*I$28 -> 0 | J39: =(Inputs!$D$38)*J$28 -> 0 | K39: =(Inputs!$D$38)*K$28 -> 0 | L39: =(Inputs!$D$38)*L$28 -> 0 | M39: =(Inputs!$D$38)*M$28 -> 0 | N39: =(Inputs!$D$38)*N$28 -> 0 | O39: =(Inputs!$D$38)*O$28 -> 0 | P39: =(Inputs!$D$38)*P$28 -> 0 | Q39: =(Inputs!$D$38)*Q$28 -> 0 | R39: =(Inputs!$D$38)*R$28 -> 0 | S39: =(Inputs!$D$38)*S$28 -> 0 | T39: =(Inputs!$D$38)*T$28 -> 0 | U39: =(Inputs!$D$38)*U$28 -> 0 | V39: =(Inputs!$D$38)*V$28 -> 0 | W39: =(Inputs!$D$38)*W$28 -> 0 | X39: =(Inputs!$D$38)*X$28 -> 0
D40: Utility Solar Integration Costs | E40: =Inputs!$D$41*Cost_Calculations!E28 -> 135614.8767 | F40: =Inputs!$D$41*Cost_Calculations!F28 -> 273942.051 | G40: =Inputs!$D$41*Cost_Calculations!G28 -> 415022.2072 | H40: =Inputs!$D$41*Cost_Calculations!H28 -> 558896.5724 | I40: =Inputs!$D$41*Cost_Calculations!I28 -> 705606.9227 | J40: =Inputs!$D$41*Cost_Calculations!J28 -> 855195.5903 | K40: =Inputs!$D$41*Cost_Calculations!K28 -> 1007705.471 | L40: =Inputs!$D$41*Cost_Calculations!L28 -> 1163180.029 | M40: =Inputs!$D$41*Cost_Calculations!M28 -> 1321663.308 | N40: =Inputs!$D$41*Cost_Calculations!N28 -> 1483199.934 | O40: =Inputs!$D$41*Cost_Calculations!O28 -> 1498031.934 | P40: =Inputs!$D$41*Cost_Calculations!P28 -> 1513012.253 | Q40: =Inputs!$D$41*Cost_Calculations!Q28 -> 1528142.376 | R40: =Inputs!$D$41*Cost_Calculations!R28 -> 1543423.799 | S40: =Inputs!$D$41*Cost_Calculations!S28 -> 1558858.037 | T40: =Inputs!$D$41*Cost_Calculations!T28 -> 1574446.618 | U40: =Inputs!$D$41*Cost_Calculations!U28 -> 1590191.084 | V40: =Inputs!$D$41*Cost_Calculations!V28 -> 1606092.995 | W40: =Inputs!$D$41*Cost_Calculations!W28 -> 1622153.925 | X40: =Inputs!$D$41*Cost_Calculations!X28 -> 1638375.464
B41: No DG PV less avoided fixed costs | D41: Variable Revenues and Costs | E41: =E18-E38+E40 -> 227323629.3 | F41: =F18-F38+F40 -> 228090184.3 | G41: =G18-G38+G40 -> 228849338.1 | H41: 229600865.9 | I41: 230344539.3 | J41: 231080126.1 | K41: 231807390.2 | L41: 232526091.6 | M41: 233235986.2 | N41: 233936826.1 | O41: 236276194.4 | P41: 238638956.3 | Q41: 241025345.9 | R41: 243435599.4 | S41: 245869955.4 | T41: 248328654.9 | U41: 250811941.5 | V41: 253320060.9 | W41: 255853261.5 | X41: 258411794.1
B42: No DG PV less avoided fixed costs | D42: Fixed Revenues and Costs | E42: =E19-E39 -> 457493524.1 | F42: 462068459.3 | G42: 466689143.9 | H42: 471356035.4 | I42: 476069595.7 | J42: 480830291.7 | K42: 485638594.6 | L42: 490494980.5 | M42: 495399930.3 | N42: 500353929.6 | O42: 505357468.9 | P42: 510411043.6 | Q42: 515515154.1 | R42: 520670305.6 | S42: 525877008.7 | T42: 531135778.8 | U42: 536447136.5 | V42: 541811607.9 | W42: 547229724 | X42: 552702021.2
B43: Sum of fixed and variable | D43: Total Energy Rate Revenues and Costs | E43: =E41+E42 -> 684817153.4 | F43: 690158643.6 | G43: 695538482 | H43: 700956901.2 | I43: 706414135 | J43: 711910417.8 | K43: 717445984.8 | L43: 723021072.1 | M43: 728635916.6 | N43: 734290755.8 | O43: 741633663.3 | P43: 749050000 | Q43: 756540500 | R43: 764105905 | S43: 771746964 | T43: 779464433.7 | U43: 787259078 | V43: 795131668.8 | W43: 803082985.5 | X43: 811113815.3
B44: Same as No DG PV | D44: Customer Charge Revenues and Costs | E44: =E21 -> 52842024 | F44: =F21 -> 53370444.24 | G44: 53904148.68 | H44: 54443190.17 | I44: 54987622.07 | J44: 55537498.29 | K44: 56092873.27 | L44: 56653802.01 | M44: 57220340.03 | N44: 57792543.43 | O44: 58370468.86 | P44: 58954173.55 | Q44: 59543715.29 | R44: 60139152.44 | S44: 60740543.96 | T44: 61347949.4 | U44: 61961428.9 | V44: 62581043.19 | W44: 63206853.62 | X44: 63838922.15
B45: Sum of Energy Rate and Customer Charge | D45: Total Revenues and Costs | E45: =E43+E44 -> 737659177.4 | F45: =F43+F44 -> 743529087.9 | G45: 749442630.7 | H45: 755400091.4 | I45: 761401757.1 | J45: 767447916.1 | K45: 773538858.1 | L45: 779674874.1 | M45: 785856256.6 | N45: 792083299.2 | O45: 800004132.2 | P45: 808004173.5 | Q45: 816084215.3 | R45: 824245057.4 | S45: 832487508 | T45: 840812383.1 | U45: 849220506.9 | V45: 857712712 | W45: 866289839.1 | X45: 874952737.5
D46: Percent of total costs that are "fixed" | E46: =(E42+E44)/E45 -> 0.6918310837 | F46: =(F42+F44)/F45 -> 0.6932330046 | G46: 0.6946406187 | H46: =(H42+H44)/H45 -> 0.6960539607 | I46: 0.6974730658 | J46: 0.6988979691 | K46: 0.7003287065 | L46: 0.7017653136 | M46: 0.7032078268 | N46: 0.7046562825 | O46: 0.7046562825 | P46: 0.7046562825 | Q46: 0.7046562825 | R46: 0.7046562825 | S46: 0.7046562825 | T46: 0.7046562825 | U46: 0.7046562825 | V46: 0.7046562825 | W46: 0.7046562825 | X46: 0.7046562825
C48: Compare Without Versus With PV
D49: Annual Benefits | E49: =E39+E38 -> 1627378.521 | F49: =F39+F38 -> 3287304.612 | G49: 4980266.487 | H49: 6706758.869 | I49: 8467283.072 | J49: 10262347.08 | K49: 12092465.65 | L49: 13958160.35 | M49: 15859959.69 | N49: 17798399.21 | O49: 17976383.2 | P49: 18156147.04 | Q49: 18337708.51 | R49: 18521085.59 | S49: 18706296.45 | T49: 18893359.41 | U49: 19082293.01 | V49: 19273115.94 | W49: 19465847.1 | X49: 19660505.57
D50: Annual Costs | E50: =E40 -> 135614.8767 | F50: =F40 -> 273942.051 | G50: 415022.2072 | H50: 558896.5724 | I50: 705606.9227 | J50: 855195.5903 | K50: 1007705.471 | L50: 1163180.029 | M50: 1321663.308 | N50: 1483199.934 | O50: 1498031.934 | P50: 1513012.253 | Q50: 1528142.376 | R50: 1543423.799 | S50: 1558858.037 | T50: 1574446.618 | U50: 1590191.084 | V50: 1606092.995 | W50: 1622153.925 | X50: 1638375.464
D51: Annual Net Benefits (Costs) | E51: =E49-E50 -> 1491763.644 | F51: =F49-F50 -> 3013362.561 | G51: 4565244.28 | H51: 6147862.297 | I51: 7761676.149 | J51: 9407151.493 | K51: 11084760.18 | L51: 12794980.32 | M51: 14538296.39 | N51: 16315199.28 | O51: 16478351.27 | P51: 16643134.78 | Q51: 16809566.13 | R51: 16977661.79 | S51: 17147438.41 | T51: 17318912.79 | U51: 17492101.92 | V51: 17667022.94 | W51: 17843693.17 | X51: 18022130.1
D53: Cumulative PV of Benefits | E53: =$E$49 -> 1627378.521 | F53: =$E$49+NPV(Inputs!$D$8,Cost_Calculations!$F49:F$49) -> 4743307.063 | G53: =$E$49+NPV(Inputs!$D$8,Cost_Calculations!$F49:G$49) -> 9217839.519 | H53: =$E$49+NPV(Inputs!$D$8,Cost_Calculations!$F49:H$49) -> 14929407.01 | I53: =$E$49+NPV(Inputs!$D$8,Cost_Calculations!$F49:I$49) -> 21764339.68 | J53: =$E$49+NPV(Inputs!$D$8,Cost_Calculations!$F49:J$49) -> 29616413.98 | K53: =$E$49+NPV(Inputs!$D$8,Cost_Calculations!$F49:K$49) -> 38386424.31 | L53: =$E$49+NPV(Inputs!$D$8,Cost_Calculations!$F49:L$49) -> 47981777.51 | M53: =$E$49+NPV(Inputs!$D$8,Cost_Calculations!$F49:M$49) -> 58316109.33 | N53: =$E$49+NPV(Inputs!$D$8,Cost_Calculations!$F49:N$49) -> 69308921.49 | O53: =$E$49+NPV(Inputs!$D$8,Cost_Calculations!$F49:O$49) -> 79832845.93 | P53: =$E$49+NPV(Inputs!$D$8,Cost_Calculations!$F49:P$49) -> 89907882.59 | Q53: =$E$49+NPV(Inputs!$D$8,Cost_Calculations!$F49:Q$49) -> 99553178.35 | R53: =$E$49+NPV(Inputs!$D$8,Cost_Calculations!$F49:R$49) -> 108787063.4 | S53: =$E$49+NPV(Inputs!$D$8,Cost_Calculations!$F49:S$49) -> 117627086 | T53: =$E$49+NPV(Inputs!$D$8,Cost_Calculations!$F49:T$49) -> 126090046.1 | U53: =$E$49+NPV(Inputs!$D$8,Cost_Calculations!$F49:U$49) -> 134192026.8 | V53: =$E$49+NPV(Inputs!$D$8,Cost_Calculations!$F49:V$49) -> 141948425.5 | W53: =$E$49+NPV(Inputs!$D$8,Cost_Calculations!$F49:W$49) -> 149373982.4 | X53: =$E$49+NPV(Inputs!$D$8,Cost_Calculations!$F49:X$49) -> 156482809.5
D54: Cumulative PV of Costs | E54: =$E$50 -> 135614.8767 | F54: =$E$50+NPV(Inputs!$D$8,Cost_Calculations!$F50:F$50) -> 395275.5886 | G54: =$E$50+NPV(Inputs!$D$8,Cost_Calculations!$F50:G$50) -> 768153.2932 | H54: =$E$50+NPV(Inputs!$D$8,Cost_Calculations!$F50:H$50) -> 1244117.251 | I54: =$E$50+NPV(Inputs!$D$8,Cost_Calculations!$F50:I$50) -> 1813694.973 | J54: =$E$50+NPV(Inputs!$D$8,Cost_Calculations!$F50:J$50) -> 2468034.499 | K54: =$E$50+NPV(Inputs!$D$8,Cost_Calculations!$F50:K$50) -> 3198868.692 | L54: =$E$50+NPV(Inputs!$D$8,Cost_Calculations!$F50:L$50) -> 3998481.459 | M54: =$E$50+NPV(Inputs!$D$8,Cost_Calculations!$F50:M$50) -> 4859675.778 | N54: =$E$50+NPV(Inputs!$D$8,Cost_Calculations!$F50:N$50) -> 5775743.458 | O54: =$E$50+NPV(Inputs!$D$8,Cost_Calculations!$F50:O$50) -> 6652737.16 | P54: =$E$50+NPV(Inputs!$D$8,Cost_Calculations!$F50:P$50) -> 7492323.549 | Q54: =$E$50+NPV(Inputs!$D$8,Cost_Calculations!$F50:Q$50) -> 8296098.196 | R54: =$E$50+NPV(Inputs!$D$8,Cost_Calculations!$F50:R$50) -> 9065588.616 | S54: =$E$50+NPV(Inputs!$D$8,Cost_Calculations!$F50:S$50) -> 9802257.17 | T54: =$E$50+NPV(Inputs!$D$8,Cost_Calculations!$F50:T$50) -> 10507503.84 | U54: =$E$50+NPV(Inputs!$D$8,Cost_Calculations!$F50:U$50) -> 11182668.9 | V54: =$E$50+NPV(Inputs!$D$8,Cost_Calculations!$F50:V$50) -> 11829035.45 | W54: =$E$50+NPV(Inputs!$D$8,Cost_Calculations!$F50:W$50) -> 12447831.87 | X54: =$E$50+NPV(Inputs!$D$8,Cost_Calculations!$F50:X$50) -> 13040234.12
D55: Cumulative PV of Net Benefits | E55: =$E$51 -> 1491763.644 | F55: =$E$51+NPV(Inputs!$D$8,Cost_Calculations!$F$51:F51) -> 4348031.474 | G55: =$E$51+NPV(Inputs!$D$8,Cost_Calculations!$F$51:G51) -> 8449686.226 | H55: =$E$51+NPV(Inputs!$D$8,Cost_Calculations!$F$51:H51) -> 13685289.76 | I55: =$E$51+NPV(Inputs!$D$8,Cost_Calculations!$F$51:I51) -> 19950644.71 | J55: =$E$51+NPV(Inputs!$D$8,Cost_Calculations!$F$51:J51) -> 27148379.49 | K55: =$E$51+NPV(Inputs!$D$8,Cost_Calculations!$F$51:K51) -> 35187555.61 | L55: =$E$51+NPV(Inputs!$D$8,Cost_Calculations!$F$51:L51) -> 43983296.05 | M55: =$E$51+NPV(Inputs!$D$8,Cost_Calculations!$F$51:M51) -> 53456433.56 | N55: =$E$51+NPV(Inputs!$D$8,Cost_Calculations!$F$51:N51) -> 63533178.03 | O55: =$E$51+NPV(Inputs!$D$8,Cost_Calculations!$F$51:O51) -> 73180108.76 | P55: =$E$51+NPV(Inputs!$D$8,Cost_Calculations!$F$51:P51) -> 82415559.04 | Q55: =$E$51+NPV(Inputs!$D$8,Cost_Calculations!$F$51:Q51) -> 91257080.16 | R55: =$E$51+NPV(Inputs!$D$8,Cost_Calculations!$F$51:R51) -> 99721474.78 | S55: =$E$51+NPV(Inputs!$D$8,Cost_Calculations!$F$51:S51) -> 107824828.9 | T55: =$E$51+NPV(Inputs!$D$8,Cost_Calculations!$F$51:T51) -> 115582542.3 | U55: =$E$51+NPV(Inputs!$D$8,Cost_Calculations!$F$51:U51) -> 123009357.9 | V55: =$E$51+NPV(Inputs!$D$8,Cost_Calculations!$F$51:V51) -> 130119390 | W55: =$E$51+NPV(Inputs!$D$8,Cost_Calculations!$F$51:W51) -> 136926150.6 | X55: =$E$51+NPV(Inputs!$D$8,Cost_Calculations!$F$51:X51) -> 143442575.4
D57: NPV of Benefits | E57: =E49+NPV(Inputs!$D$8,F49:X49) -> 156482809.5
D58: NPV of Costs | E58: =E50+NPV(Inputs!$D$8,F50:X50) -> 13040234.12
D59: NPV of Net Benefits (costs) | E59: =E51+NPV(Inputs!$D$8,F51:X51) -> 143442575.4
D60: BCR | E60: =E57/E58 -> 12
D61: PVRR With PV | E61: =E45+NPV(Inputs!$D$8,F45:X45) -> 9938655708
D62: PVRR Without PV | E62: =E22+NPV(Inputs!$D$8,F22:X22) -> 1.008209828e+10
D63: NPV of Costs | E63: =E62-E61 -> 143442575.4
D64: Reduction of Total Costs | E64: =E63/E62 -> 0.01422745259

Sheet Rate_Calculations
C2: Rate Calculations
C3: Differences | E3: 2015 | F3: 2016 | G3: 2017 | H3: 2018 | I3: 2019 | J3: 2020 | K3: 2021 | L3: 2022 | M3: 2023 | N3: 2024 | O3: 2025 | P3: 2026 | Q3: 2027 | R3: 2028 | S3: 2029 | T3: 2030 | U3: 2031 | V3: 2032 | W3: 2033 | X3: 2034
C4: Rates
D5: Change in Energy Rate - variable portion ($/MWh) | E5: =Cost_Calculations!E32-Cost_Calculations!E12 -> -0.08665442512 | F5: =Cost_Calculations!F32-Cost_Calculations!F12 -> -0.1739878887 | G5: =Cost_Calculations!G32-Cost_Calculations!G12 -> -0.2620084036 | H5: =Cost_Calculations!H32-Cost_Calculations!H12 -> -0.3507241095 | I5: =Cost_Calculations!I32-Cost_Calculations!I12 -> -0.440143275 | J5: =Cost_Calculations!J32-Cost_Calculations!J12 -> -0.5302743004 | K5: =Cost_Calculations!K32-Cost_Calculations!K12 -> -0.6211257203 | L5: =Cost_Calculations!L32-Cost_Calculations!L12 -> -0.7127062062 | M5: =Cost_Calculations!M32-Cost_Calculations!M12 -> -0.8050245694 | N5: =Cost_Calculations!N32-Cost_Calculations!N12 -> -0.8980897637 | O5: =Cost_Calculations!O32-Cost_Calculations!O12 -> -0.8980897637 | P5: =Cost_Calculations!P32-Cost_Calculations!P12 -> -0.8980897637 | Q5: =Cost_Calculations!Q32-Cost_Calculations!Q12 -> -0.8980897637 | R5: =Cost_Calculations!R32-Cost_Calculations!R12 -> -0.8980897637 | S5: =Cost_Calculations!S32-Cost_Calculations!S12 -> -0.8980897637 | T5: =Cost_Calculations!T32-Cost_Calculations!T12 -> -0.8980897637 | U5: =Cost_Calculations!U32-Cost_Calculations!U12 -> -0.8980897637 | V5: =Cost_Calculations!V32-Cost_Calculations!V12 -> -0.8980897637 | W5: =Cost_Calculations!W32-Cost_Calculations!W12 -> -0.8980897637 | X5: =Cost_Calculations!X32-Cost_Calculations!X12 -> -0.8980897637
D6: Change in Energy Rate - fixed portion ($/MWh) | E6: =Cost_Calculations!E33-Cost_Calculations!E13 -> 0.2559214123 | F6: =Cost_Calculations!F33-Cost_Calculations!F13 -> 0.5138482673 | G6: =Cost_Calculations!G33-Cost_Calculations!G13 -> 0.7738042299 | H6: =Cost_Calculations!H33-Cost_Calculations!H13 -> 1.035813339 | I6: =Cost_Calculations!I33-Cost_Calculations!I13 -> 1.299900016 | J6: =Cost_Calculations!J33-Cost_Calculations!J13 -> 1.566089068 | K6: =Cost_Calculations!K33-Cost_Calculations!K13 -> 1.834405702 | L6: =Cost_Calculations!L33-Cost_Calculations!L13 -> 2.104875529 | M6: =Cost_Calculations!M33-Cost_Calculations!M13 -> 2.377524569 | N6: =Cost_Calculations!N33-Cost_Calculations!N13 -> 2.652379269 | O6: =Cost_Calculations!O33-Cost_Calculations!O13 -> 2.652379269 | P6: =Cost_Calculations!P33-Cost_Calculations!P13 -> 2.652379269 | Q6: =Cost_Calculations!Q33-Cost_Calculations!Q13 -> 2.652379269 | R6: =Cost_Calculations!R33-Cost_Calculations!R13 -> 2.652379269 | S6: =Cost_Calculations!S33-Cost_Calculations!S13 -> 2.652379269 | T6: =Cost_Calculations!T33-Cost_Calculations!T13 -> 2.652379269 | U6: =Cost_Calculations!U33-Cost_Calculations!U13 -> 2.652379269 | V6: =Cost_Calculations!V33-Cost_Calculations!V13 -> 2.652379269 | W6: =Cost_Calculations!W33-Cost_Calculations!W13 -> 2.652379269 | X6: =Cost_Calculations!X33-Cost_Calculations!X13 -> 2.652379269
D7: Change in Total Energy Rate ($/MWh) | E7: =Cost_Calculations!E34-Cost_Calculations!E14 -> 0.1692669872 | F7: =Cost_Calculations!F34-Cost_Calculations!F14 -> 0.3398603786 | G7: =Cost_Calculations!G34-Cost_Calculations!G14 -> 0.5117958263 | H7: =Cost_Calculations!H34-Cost_Calculations!H14 -> 0.6850892298 | I7: =Cost_Calculations!I34-Cost_Calculations!I14 -> 0.8597567408 | J7: =Cost_Calculations!J34-Cost_Calculations!J14 -> 1.035814768 | K7: =Cost_Calculations!K34-Cost_Calculations!K14 -> 1.213279982 | L7: =Cost_Calculations!L34-Cost_Calculations!L14 -> 1.392169322 | M7: =Cost_Calculations!M34-Cost_Calculations!M14 -> 1.5725 | N7: =Cost_Calculations!N34-Cost_Calculations!N14 -> 1.754289505 | O7: =Cost_Calculations!O34-Cost_Calculations!O14 -> 1.754289505 | P7: =Cost_Calculations!P34-Cost_Calculations!P14 -> 1.754289505 | Q7: =Cost_Calculations!Q34-Cost_Calculations!Q14 -> 1.754289505 | R7: =Cost_Calculations!R34-Cost_Calculations!R14 -> 1.754289505 | S7: =Cost_Calculations!S34-Cost_Calculations!S14 -> 1.754289505 | T7: =Cost_Calculations!T34-Cost_Calculations!T14 -> 1.754289505 | U7: =Cost_Calculations!U34-Cost_Calculations!U14 -> 1.754289505 | V7: =Cost_Calculations!V34-Cost_Calculations!V14 -> 1.754289505 | W7: =Cost_Calculations!W34-Cost_Calculations!W14 -> 1.754289505 | X7: =Cost_Calculations!X34-Cost_Calculations!X14 -> 1.754289505 | Y7: `
D8: Change in Customer ($/Month) | E8: =Cost_Calculations!E35-Cost_Calculations!E15 -> 0 | F8: =Cost_Calculations!F35-Cost_Calculations!F15 -> 0 | G8: =Cost_Calculations!G35-Cost_Calculations!G15 -> 0 | H8: =Cost_Calculations!H35-Cost_Calculations!H15 -> 0 | I8: =Cost_Calculations!I35-Cost_Calculations!I15 -> 0 | J8: =Cost_Calculations!J35-Cost_Calculations!J15 -> 0 | K8: =Cost_Calculations!K35-Cost_Calculations!K15 -> 0 | L8: =Cost_Calculations!L35-Cost_Calculations!L15 -> 0 | M8: =Cost_Calculations!M35-Cost_Calculations!M15 -> 0 | N8: =Cost_Calculations!N35-Cost_Calculations!N15 -> 0 | O8: =Cost_Calculations!O35-Cost_Calculations!O15 -> 0 | P8: =Cost_Calculations!P35-Cost_Calculations!P15 -> 0 | Q8: =Cost_Calculations!Q35-Cost_Calculations!Q15 -> 0 | R8: =Cost_Calculations!R35-Cost_Calculations!R15 -> 0 | S8: =Cost_Calculations!S35-Cost_Calculations!S15 -> 0 | T8: =Cost_Calculations!T35-Cost_Calculations!T15 -> 0 | U8: =Cost_Calculations!U35-Cost_Calculations!U15 -> 0 | V8: =Cost_Calculations!V35-Cost_Calculations!V15 -> 0 | W8: =Cost_Calculations!W35-Cost_Calculations!W15 -> 0 | X8: =Cost_Calculations!X35-Cost_Calculations!X15 -> 0
D9: Change in Minimum bill ($) | E9: =Cost_Calculations!E36-Cost_Calculations!E16 -> 0 | F9: =Cost_Calculations!F36-Cost_Calculations!F16 -> 0 | G9: =Cost_Calculations!G36-Cost_Calculations!G16 -> 0 | H9: =Cost_Calculations!H36-Cost_Calculations!H16 -> 0 | I9: =Cost_Calculations!I36-Cost_Calculations!I16 -> 0 | J9: =Cost_Calculations!J36-Cost_Calculations!J16 -> 0 | K9: =Cost_Calculations!K36-Cost_Calculations!K16 -> 0 | L9: =Cost_Calculations!L36-Cost_Calculations!L16 -> 0 | M9: =Cost_Calculations!M36-Cost_Calculations!M16 -> 0 | N9: =Cost_Calculations!N36-Cost_Calculations!N16 -> 0 | O9: =Cost_Calculations!O36-Cost_Calculations!O16 -> 0 | P9: =Cost_Calculations!P36-Cost_Calculations!P16 -> 0 | Q9: =Cost_Calculations!Q36-Cost_Calculations!Q16 -> 0 | R9: =Cost_Calculations!R36-Cost_Calculations!R16 -> 0 | S9: =Cost_Calculations!S36-Cost_Calculations!S16 -> 0 | T9: =Cost_Calculations!T36-Cost_Calculations!T16 -> 0 | U9: =Cost_Calculations!U36-Cost_Calculations!U16 -> 0 | V9: =Cost_Calculations!V36-Cost_Calculations!V16 -> 0 | W9: =Cost_Calculations!W36-Cost_Calculations!W16 -> 0 | X9: =Cost_Calculations!X36-Cost_Calculations!X16 -> 0
D11: Change in Energy Rate - variable portion (%) | E11: =Cost_Calculations!E32/Cost_Calculations!E12-1 -> -0.002642160328 | F11: =Cost_Calculations!F32/Cost_Calculations!F12-1 -> -0.005305025062 | G11: =Cost_Calculations!G32/Cost_Calculations!G12-1 -> -0.007988838524 | H11: =Cost_Calculations!H32/Cost_Calculations!H12-1 -> -0.01069384889 | I11: =Cost_Calculations!I32/Cost_Calculations!I12-1 -> -0.01342030829 | J11: =Cost_Calculations!J32/Cost_Calculations!J12-1 -> -0.01616847285 | K11: =Cost_Calculations!K32/Cost_Calculations!K12-1 -> -0.01893860279 | L11: =Cost_Calculations!L32/Cost_Calculations!L12-1 -> -0.02173096251 | M11: =Cost_Calculations!M32/Cost_Calculations!M12-1 -> -0.02454582068 | N11: =Cost_Calculations!N32/Cost_Calculations!N12-1 -> -0.02738345031 | O11: =Cost_Calculations!O32/Cost_Calculations!O12-1 -> -0.02738345031 | P11: =Cost_Calculations!P32/Cost_Calculations!P12-1 -> -0.02738345031 | Q11: =Cost_Calculations!Q32/Cost_Calculations!Q12-1 -> -0.02738345031 | R11: =Cost_Calculations!R32/Cost_Calculations!R12-1 -> -0.02738345031 | S11: =Cost_Calculations!S32/Cost_Calculations!S12-1 -> -0.02738345031 | T11: =Cost_Calculations!T32/Cost_Calculations!T12-1 -> -0.02738345031 | U11: =Cost_Calculations!U32/Cost_Calculations!U12-1 -> -0.02738345031 | V11: =Cost_Calculations!V32/Cost_Calculations!V12-1 -> -0.02738345031 | W11: =Cost_Calculations!W32/Cost_Calculations!W12-1 -> -0.02738345031 | X11: =Cost_Calculations!X32/Cost_Calculations!X12-1 -> -0.02738345031
D12: Change in Energy Rate - fixed portion (%) | E12: =Cost_Calculations!E33/Cost_Calculations!E13-1 -> 0.003902791333 | F12: =Cost_Calculations!F33/Cost_Calculations!F13-1 -> 0.007836165586 | G12: =Cost_Calculations!G33/Cost_Calculations!G13-1 -> 0.01180048365 | H12: =Cost_Calculations!H33/Cost_Calculations!H13-1 -> 0.01579611212 | I12: =Cost_Calculations!I33/Cost_Calculations!I13-1 -> 0.01982342341 | J12: =Cost_Calculations!J33/Cost_Calculations!J13-1 -> 0.02388279584 | K12: =Cost_Calculations!K33/Cost_Calculations!K13-1 -> 0.02797461382 | L12: =Cost_Calculations!L33/Cost_Calculations!L13-1 -> 0.03209926788 | M12: =Cost_Calculations!M33/Cost_Calculations!M13-1 -> 0.03625715488 | N12: =Cost_Calculations!N33/Cost_Calculations!N13-1 -> 0.04044867809 | O12: =Cost_Calculations!O33/Cost_Calculations!O13-1 -> 0.04044867809 | P12: =Cost_Calculations!P33/Cost_Calculations!P13-1 -> 0.04044867809 | Q12: =Cost_Calculations!Q33/Cost_Calculations!Q13-1 -> 0.04044867809 | R12: =Cost_Calculations!R33/Cost_Calculations!R13-1 -> 0.04044867809 | S12: =Cost_Calculations!S33/Cost_Calculations!S13-1 -> 0.04044867809 | T12: =Cost_Calculations!T33/Cost_Calculations!T13-1 -> 0.04044867809 | U12: =Cost_Calculations!U33/Cost_Calculations!U13-1 -> 0.04044867809 | V12: =Cost_Calculations!V33/Cost_Calculations!V13-1 -> 0.04044867809 | W12: =Cost_Calculations!W33/Cost_Calculations!W13-1 -> 0.04044867809 | X12: =Cost_Calculations!X33/Cost_Calculations!X13-1 -> 0.04044867809
D13: Change in Total Energy Rate (%) | E13: =Cost_Calculations!E34/Cost_Calculations!E14-1 -> 0.00172070445 | F13: =Cost_Calculations!F34/Cost_Calculations!F14-1 -> 0.003454892624 | G13: =Cost_Calculations!G34/Cost_Calculations!G14-1 -> 0.005202723638 | H13: =Cost_Calculations!H34/Cost_Calculations!H14-1 -> 0.006964359119 | I13: =Cost_Calculations!I34/Cost_Calculations!I14-1 -> 0.008739963259 | J13: =Cost_Calculations!J34/Cost_Calculations!J14-1 -> 0.01052970286 | K13: =Cost_Calculations!K34/Cost_Calculations!K14-1 -> 0.0123337474 | L13: =Cost_Calculations!L34/Cost_Calculations!L14-1 -> 0.01415226907 | M13: =Cost_Calculations!M34/Cost_Calculations!M14-1 -> 0.01598544283 | N13: =Cost_Calculations!N34/Cost_Calculations!N14-1 -> 0.01783344648 | O13: =Cost_Calculations!O34/Cost_Calculations!O14-1 -> 0.01783344648 | P13: =Cost_Calculations!P34/Cost_Calculations!P14-1 -> 0.01783344648 | Q13: =Cost_Calculations!Q34/Cost_Calculations!Q14-1 -> 0.01783344648 | R13: =Cost_Calculations!R34/Cost_Calculations!R14-1 -> 0.01783344648 | S13: =Cost_Calculations!S34/Cost_Calculations!S14-1 -> 0.01783344648 | T13: =Cost_Calculations!T34/Cost_Calculations!T14-1 -> 0.01783344648 | U13: =Cost_Calculations!U34/Cost_Calculations!U14-1 -> 0.01783344648 | V13: =Cost_Calculations!V34/Cost_Calculations!V14-1 -> 0.01783344648 | W13: =Cost_Calculations!W34/Cost_Calculations!W14-1 -> 0.01783344648 | X13: =Cost_Calculations!X34/Cost_Calculations!X14-1 -> 0.01783344648
B15: Avoided Costs | D15: Energy Rate impact due to AC (¢/kWh) | E15: =(Cost_Calculations!E43/Cost_Calculations!E10-Cost_Calculations!E14)*(Reference!$C$71/Reference!$C$70) -> -0.02138190323 | F15: =(Cost_Calculations!F43/Cost_Calculations!F10-Cost_Calculations!F14)*(Reference!$C$71/Reference!$C$70) -> -0.04276380645 | G15: =(Cost_Calculations!G43/Cost_Calculations!G10-Cost_Calculations!G14)*(Reference!$C$71/Reference!$C$70) -> -0.06414570968 | H15: =(Cost_Calculations!H43/Cost_Calculations!H10-Cost_Calculations!H14)*(Reference!$C$71/Reference!$C$70) -> -0.08552761291 | I15: =(Cost_Calculations!I43/Cost_Calculations!I10-Cost_Calculations!I14)*(Reference!$C$71/Reference!$C$70) -> -0.1069095161 | J15: =(Cost_Calculations!J43/Cost_Calculations!J10-Cost_Calculations!J14)*(Reference!$C$71/Reference!$C$70) -> -0.1282914194 | K15: =(Cost_Calculations!K43/Cost_Calculations!K10-Cost_Calculations!K14)*(Reference!$C$71/Reference!$C$70) -> -0.1496733226 | L15: =(Cost_Calculations!L43/Cost_Calculations!L10-Cost_Calculations!L14)*(Reference!$C$71/Reference!$C$70) -> -0.1710552258 | M15: =(Cost_Calculations!M43/Cost_Calculations!M10-Cost_Calculations!M14)*(Reference!$C$71/Reference!$C$70) -> -0.192437129 | N15: =(Cost_Calculations!N43/Cost_Calculations!N10-Cost_Calculations!N14)*(Reference!$C$71/Reference!$C$70) -> -0.2138190323 | O15: =(Cost_Calculations!O43/Cost_Calculations!O10-Cost_Calculations!O14)*(Reference!$C$71/Reference!$C$70) -> -0.2138190323 | P15: =(Cost_Calculations!P43/Cost_Calculations!P10-Cost_Calculations!P14)*(Reference!$C$71/Reference!$C$70) -> -0.2138190323 | Q15: =(Cost_Calculations!Q43/Cost_Calculations!Q10-Cost_Calculations!Q14)*(Reference!$C$71/Reference!$C$70) -> -0.2138190323 | R15: =(Cost_Calculations!R43/Cost_Calculations!R10-Cost_Calculations!R14)*(Reference!$C$71/Reference!$C$70) -> -0.2138190323 | S15: =(Cost_Calculations!S43/Cost_Calculations!S10-Cost_Calculations!S14)*(Reference!$C$71/Reference!$C$70) -> -0.2138190323 | T15: =(Cost_Calculations!T43/Cost_Calculations!T10-Cost_Calculations!T14)*(Reference!$C$71/Reference!$C$70) -> -0.2138190323 | U15: =(Cost_Calculations!U43/Cost_Calculations!U10-Cost_Calculations!U14)*(Reference!$C$71/Reference!$C$70) -> -0.2138190323 | V15: =(Cost_Calculations!V43/Cost_Calculations!V10-Cost_Calculations!V14)*(Reference!$C$71/Reference!$C$70) -> -0.2138190323 | W15: =(Cost_Calculations!W43/Cost_Calculations!W10-Cost_Calculations!W14)*(Reference!$C$71/Reference!$C$70) -> -0.2138190323 | X15: =(Cost_Calculations!X43/Cost_Calculations!X10-Cost_Calculations!X14)*(Reference!$C$71/Reference!$C$70) -> -0.2138190323
B16: Recovery of Lost Revenues | D16: Energy rate impact due to lost revenues (¢/kWh) | E16: =E17-E15 -> 0.03830860195 | F16: =F17-F15 -> 0.07674984431 | G16: 0.1153252923 | H16: 0.1540365359 | I16: 0.1928851902 | J16: 0.2318728962 | K16: 0.2710013208 | L16: 0.3102721581 | M16: 0.349687129 | N16: 0.3892479828 | O16: 0.3892479828 | P16: 0.3892479828 | Q16: 0.3892479828 | R16: 0.3892479828 | S16: 0.3892479828 | T16: 0.3892479828 | U16: 0.3892479828 | V16: 0.3892479828 | W16: 0.3892479828 | X16: 0.3892479828
B17: Net Effect | D17: Energy rate impact of both (¢/kWh) | E17: =E7/10 -> 0.01692669872 | F17: 0.03398603786 | G17: 0.05117958263 | H17: 0.06850892298 | I17: 0.08597567408 | J17: 0.1035814768 | K17: 0.1213279982 | L17: 0.1392169322 | M17: 0.15725 | N17: 0.1754289505 | O17: 0.1754289505 | P17: 0.1754289505 | Q17: 0.1754289505 | R17: 0.1754289505 | S17: 0.1754289505 | T17: 0.1754289505 | U17: 0.1754289505 | V17: 0.1754289505 | W17: 0.1754289505 | X17: 0.1754289505
E19: Averages
E20: 10 yrs | F20: 20 yrs
D21: Change in Energy Rate - variable portion ($/MWh) | E21: =AVERAGE(E5:N5) -> -0.4880738662 | F21: =AVERAGE(E5:X5) -> -0.6930818149
D22: Change in Energy Rate - fixed portion ($/MWh) | E22: =AVERAGE(E6:N6) -> 1.44145614 | F22: =AVERAGE(E6:X6) -> 2.046917705
D23: Change in Total Energy Rate ($/MWh) | E23: =AVERAGE(E7:N7) -> 0.953382274 | F23: =AVERAGE(E7:X7) -> 1.35383589
D24: Customer ($/Month) | E24: =AVERAGE(E8:N8) -> 0 | F24: =AVERAGE(E8:X8) -> 0
D25: Minimum bill ($) | E25: =AVERAGE(E9:N9) -> 0 | F25: =AVERAGE(E9:X9) -> 0
D27: Change in Energy Rate - variable portion (%) | E27: =AVERAGE(E11:N11) -> -0.01488174902 | F27: =AVERAGE(E11:X11) -> -0.02113259967
D28: Change in Energy Rate - fixed portion (%) | E28: =AVERAGE(E12:N12) -> 0.02198214866 | F28: =AVERAGE(E12:X12) -> 0.03121541337
D29: Total Energy Rate (%)
D31: Energy Rate impact due to AC (¢/kWh) | E31: =AVERAGE(E15:N15) -> -0.1176004678 | F31: =AVERAGE(E15:X15) -> -0.16570975
D32: Energy rate impact due to lost revenues (¢/kWh) | E32: =AVERAGE(E16:N16) -> 0.2129386952 | F32: =AVERAGE(E16:X16) -> 0.301093339
D33: Energy rate impact of both (¢/kWh) | E33: =AVERAGE(E17:N17) -> 0.0953382274 | F33: =AVERAGE(E17:X17) -> 0.135383589

Sheet Year_to_Year_Calcs
B1: Utah NEM Rate Impact Analysis
C3: Year-to-Year Calculations | E3: 2015 | F3: 2016 | G3: 2017 | H3: 2018 | I3: 2019 | J3: 2020 | K3: 2021 | L3: 2022 | M3: 2023 | N3: 2024 | O3: 2025 | P3: 2026 | Q3: 2027 | R3: 2028 | S3: 2029 | T3: 2030 | U3: 2031 | V3: 2032 | W3: 2033 | X3: 2034
B4: Scenario calculations for no DGPV case | C4: No DG PV Case
C5: Rates
B6: Fuel and Purchased Power Charge | D6: Energy Rate - variable portion ($/MWh) | E6: =Cost_Calculations!E12 -> 32.79680805 | F6: =Cost_Calculations!F12 -> 32.79680805 | G6: =Cost_Calculations!G12 -> 32.79680805 | H6: =Cost_Calculations!H12 -> 32.79680805 | I6: =Cost_Calculations!I12 -> 32.79680805 | J6: =Cost_Calculations!J12 -> 32.79680805 | K6: =Cost_Calculations!K12 -> 32.79680805 | L6: =Cost_Calculations!L12 -> 32.79680805 | M6: =Cost_Calculations!M12 -> 32.79680805 | N6: =Cost_Calculations!N12 -> 32.79680805 | O6: =Cost_Calculations!O12 -> 32.79680805 | P6: =Cost_Calculations!P12 -> 32.79680805 | Q6: =Cost_Calculations!Q12 -> 32.79680805 | R6: =Cost_Calculations!R12 -> 32.79680805 | S6: =Cost_Calculations!S12 -> 32.79680805 | T6: =Cost_Calculations!T12 -> 32.79680805 | U6: =Cost_Calculations!U12 -> 32.79680805 | V6: =Cost_Calculations!V12 -> 32.79680805 | W6: =Cost_Calculations!W12 -> 32.79680805 | X6: =Cost_Calculations!X12 -> 32.79680805
B7: Energy rate times fixed portion | D7: Energy Rate - fixed portion ($/MWh) | E7: =Cost_Calculations!E13 -> 65.57394195 | F7: =Cost_Calculations!F13 -> 65.57394195 | G7: =Cost_Calculations!G13 -> 65.57394195 | H7: =Cost_Calculations!H13 -> 65.57394195 | I7: =Cost_Calculations!I13 -> 65.57394195 | J7: =Cost_Calculations!J13 -> 65.57394195 | K7: =Cost_Calculations!K13 -> 65.57394195 | L7: =Cost_Calculations!L13 -> 65.57394195 | M7: =Cost_Calculations!M13 -> 65.57394195 | N7: =Cost_Calculations!N13 -> 65.57394195 | O7: =Cost_Calculations!O13 -> 65.57394195 | P7: =Cost_Calculations!P13 -> 65.57394195 | Q7: =Cost_Calculations!Q13 -> 65.57394195 | R7: =Cost_Calculations!R13 -> 65.57394195 | S7: =Cost_Calculations!S13 -> 65.57394195 | T7: =Cost_Calculations!T13 -> 65.57394195 | U7: =Cost_Calculations!U13 -> 65.57394195 | V7: =Cost_Calculations!V13 -> 65.57394195 | W7: =Cost_Calculations!W13 -> 65.57394195 | X7: =Cost_Calculations!X13 -> 65.57394195
B8: Sum of above | D8: Total Energy Rate ($/MWh) | E8: =Cost_Calculations!E14 -> 98.37075 | F8: =Cost_Calculations!F14 -> 98.37075 | G8: =Cost_Calculations!G14 -> 98.37075 | H8: =Cost_Calculations!H14 -> 98.37075 | I8: =Cost_Calculations!I14 -> 98.37075 | J8: =Cost_Calculations!J14 -> 98.37075 | K8: =Cost_Calculations!K14 -> 98.37075 | L8: =Cost_Calculations!L14 -> 98.37075 | M8: =Cost_Calculations!M14 -> 98.37075 | N8: =Cost_Calculations!N14 -> 98.37075 | O8: =Cost_Calculations!O14 -> 98.37075 | P8: =Cost_Calculations!P14 -> 98.37075 | Q8: =Cost_Calculations!Q14 -> 98.37075 | R8: =Cost_Calculations!R14 -> 98.37075 | S8: =Cost_Calculations!S14 -> 98.37075 | T8: =Cost_Calculations!T14 -> 98.37075 | U8: =Cost_Calculations!U14 -> 98.37075 | V8: =Cost_Calculations!V14 -> 98.37075 | W8: =Cost_Calculations!W14 -> 98.37075 | X8: =Cost_Calculations!X14 -> 98.37075
B9: Customer charge | D9: Customer ($/Month) | E9: =Cost_Calculations!E15 -> 6 | F9: =Cost_Calculations!F15 -> 6 | G9: =Cost_Calculations!G15 -> 6 | H9: =Cost_Calculations!H15 -> 6 | I9: =Cost_Calculations!I15 -> 6 | J9: =Cost_Calculations!J15 -> 6 | K9: =Cost_Calculations!K15 -> 6 | L9: =Cost_Calculations!L15 -> 6 | M9: =Cost_Calculations!M15 -> 6 | N9: =Cost_Calculations!N15 -> 6 | O9: =Cost_Calculations!O15 -> 6 | P9: =Cost_Calculations!P15 -> 6 | Q9: =Cost_Calculations!Q15 -> 6 | R9: =Cost_Calculations!R15 -> 6 | S9: =Cost_Calculations!S15 -> 6 | T9: =Cost_Calculations!T15 -> 6 | U9: =Cost_Calculations!U15 -> 6 | V9: =Cost_Calculations!V15 -> 6 | W9: =Cost_Calculations!W15 -> 6 | X9: =Cost_Calculations!X15 -> 6
B10: Minimum bill | D10: Minimum bill ($) | E10: =Cost_Calculations!E16 -> 8 | F10: =Cost_Calculations!F16 -> 8 | G10: =Cost_Calculations!G16 -> 8 | H10: =Cost_Calculations!H16 -> 8 | I10: =Cost_Calculations!I16 -> 8 | J10: =Cost_Calculations!J16 -> 8 | K10: =Cost_Calculations!K16 -> 8 | L10: =Cost_Calculations!L16 -> 8 | M10: =Cost_Calculations!M16 -> 8 | N10: =Cost_Calculations!N16 -> 8 | O10: =Cost_Calculations!O16 -> 8 | P10: =Cost_Calculations!P16 -> 8 | Q10: =Cost_Calculations!Q16 -> 8 | R10: =Cost_Calculations!R16 -> 8 | S10: =Cost_Calculations!S16 -> 8 | T10: =Cost_Calculations!T16 -> 8 | U10: =Cost_Calculations!U16 -> 8 | V10: =Cost_Calculations!V16 -> 8 | W10: =Cost_Calculations!W16 -> 8 | X10: =Cost_Calculations!X16 -> 8
C12: With DG PV
C13: Rates
B14: New variable costs / net sales | D14: Energy Rate - variable portion ($/MWh) | E14: =Cost_Calculations!E32 -> 32.71015362 | F14: =Cost_Calculations!F32 -> 32.62282016 | G14: =Cost_Calculations!G32 -> 32.53479965 | H14: =Cost_Calculations!H32 -> 32.44608394 | I14: =Cost_Calculations!I32 -> 32.35666477 | J14: =Cost_Calculations!J32 -> 32.26653375 | K14: =Cost_Calculations!K32 -> 32.17568233 | L14: =Cost_Calculations!L32 -> 32.08410184 | M14: =Cost_Calculations!M32 -> 31.99178348 | N14: =Cost_Calculations!N32 -> 31.89871829 | O14: =Cost_Calculations!O32 -> 31.89871829 | P14: =Cost_Calculations!P32 -> 31.89871829 | Q14: =Cost_Calculations!Q32 -> 31.89871829 | R14: =Cost_Calculations!R32 -> 31.89871829 | S14: =Cost_Calculations!S32 -> 31.89871829 | T14: =Cost_Calculations!T32 -> 31.89871829 | U14: =Cost_Calculations!U32 -> 31.89871829 | V14: =Cost_Calculations!V32 -> 31.89871829 | W14: =Cost_Calculations!W32 -> 31.89871829 | X14: =Cost_Calculations!X32 -> 31.89871829
B15: New fixed costs / net sales | D15: Energy Rate - fixed portion ($/MWh) | E15: =Cost_Calculations!E33 -> 65.82986336 | F15: =Cost_Calculations!F33 -> 66.08779022 | G15: =Cost_Calculations!G33 -> 66.34774618 | H15: =Cost_Calculations!H33 -> 66.60975529 | I15: =Cost_Calculations!I33 -> 66.87384197 | J15: =Cost_Calculations!J33 -> 67.14003102 | K15: =Cost_Calculations!K33 -> 67.40834765 | L15: =Cost_Calculations!L33 -> 67.67881748 | M15: =Cost_Calculations!M33 -> 67.95146652 | N15: =Cost_Calculations!N33 -> 68.22632122 | O15: =Cost_Calculations!O33 -> 68.22632122 | P15: =Cost_Calculations!P33 -> 68.22632122 | Q15: =Cost_Calculations!Q33 -> 68.22632122 | R15: =Cost_Calculations!R33 -> 68.22632122 | S15: =Cost_Calculations!S33 -> 68.22632122 | T15: =Cost_Calculations!T33 -> 68.22632122 | U15: =Cost_Calculations!U33 -> 68.22632122 | V15: =Cost_Calculations!V33 -> 68.22632122 | W15: =Cost_Calculations!W33 -> 68.22632122 | X15: =Cost_Calculations!X33 -> 68.22632122
B16: Sum of above | D16: Total Energy Rate ($/MWh) | E16: =Cost_Calculations!E34 -> 98.54001699 | F16: =Cost_Calculations!F34 -> 98.71061038 | G16: =Cost_Calculations!G34 -> 98.88254583 | H16: =Cost_Calculations!H34 -> 99.05583923 | I16: =Cost_Calculations!I34 -> 99.23050674 | J16: =Cost_Calculations!J34 -> 99.40656477 | K16: =Cost_Calculations!K34 -> 99.58402998 | L16: =Cost_Calculations!L34 -> 99.76291932 | M16: =Cost_Calculations!M34 -> 99.94325 | N16: =Cost_Calculations!N34 -> 100.1250395 | O16: =Cost_Calculations!O34 -> 100.1250395 | P16: =Cost_Calculations!P34 -> 100.1250395 | Q16: =Cost_Calculations!Q34 -> 100.1250395 | R16: =Cost_Calculations!R34 -> 100.1250395 | S16: =Cost_Calculations!S34 -> 100.1250395 | T16: =Cost_Calculations!T34 -> 100.1250395 | U16: =Cost_Calculations!U34 -> 100.1250395 | V16: =Cost_Calculations!V34 -> 100.1250395 | W16: =Cost_Calculations!W34 -> 100.1250395 | X16: =Cost_Calculations!X34 -> 100.1250395
B17: Same as No DG PV | D17: Customer ($/Month) | E17: =Cost_Calculations!E35 -> 6 | F17: =Cost_Calculations!F35 -> 6 | G17: =Cost_Calculations!G35 -> 6 | H17: =Cost_Calculations!H35 -> 6 | I17: =Cost_Calculations!I35 -> 6 | J17: =Cost_Calculations!J35 -> 6 | K17: =Cost_Calculations!K35 -> 6 | L17: =Cost_Calculations!L35 -> 6 | M17: =Cost_Calculations!M35 -> 6 | N17: =Cost_Calculations!N35 -> 6 | O17: =Cost_Calculations!O35 -> 6 | P17: =Cost_Calculations!P35 -> 6 | Q17: =Cost_Calculations!Q35 -> 6 | R17: =Cost_Calculations!R35 -> 6 | S17: =Cost_Calculations!S35 -> 6 | T17: =Cost_Calculations!T35 -> 6 | U17: =Cost_Calculations!U35 -> 6 | V17: =Cost_Calculations!V35 -> 6 | W17: =Cost_Calculations!W35 -> 6 | X17: =Cost_Calculations!X35 -> 6
B18: Same as No DG PV | D18: Minimum bill ($) | E18: =Cost_Calculations!E36 -> 8 | F18: =Cost_Calculations!F36 -> 8 | G18: =Cost_Calculations!G36 -> 8 | H18: =Cost_Calculations!H36 -> 8 | I18: =Cost_Calculations!I36 -> 8 | J18: =Cost_Calculations!J36 -> 8 | K18: =Cost_Calculations!K36 -> 8 | L18: =Cost_Calculations!L36 -> 8 | M18: =Cost_Calculations!M36 -> 8 | N18: =Cost_Calculations!N36 -> 8 | O18: =Cost_Calculations!O36 -> 8 | P18: =Cost_Calculations!P36 -> 8 | Q18: =Cost_Calculations!Q36 -> 8 | R18: =Cost_Calculations!R36 -> 8 | S18: =Cost_Calculations!S36 -> 8 | T18: =Cost_Calculations!T36 -> 8 | U18: =Cost_Calculations!U36 -> 8 | V18: =Cost_Calculations!V36 -> 8 | W18: =Cost_Calculations!W36 -> 8 | X18: =Cost_Calculations!X36 -> 8
C20: Year-to-Year Impacts
C21: Rates - Change from Previous Year
D22: Energy Rate - variable portion ($/MWh) | E22: ---- | F22: =F14-E14 -> -0.08733346354 | G22: =G14-F14 -> -0.08802051495 | H22: -0.08871570591 | I22: -0.08941916551 | J22: =J14-I14 -> -0.0901310254 | K22: -0.09085141987 | L22: -0.09158048588 | M22: -0.09231836318 | N22: -0.09306519434 | O22: 0 | P22: 0 | Q22: 0 | R22: 0 | S22: 0 | T22: 0 | U22: 0 | V22: 0 | W22: 0 | X22: 0
D23: Energy Rate - fixed portion ($/MWh) | E23: ---- | F23: =F15-E15 -> 0.2579268549 | G23: 0.2599559627 | H23: 0.2620091094 | I23: 0.2640866764 | J23: 0.2661890525 | K23: 0.2683166342 | L23: 0.2704698261 | M23: 0.2726490408 | N23: 0.2748546995 | O23: 0 | P23: 0 | Q23: 0 | R23: 0 | S23: 0 | T23: 0 | U23: 0 | V23: 0 | W23: 0 | X23: 0
D24: Total Energy Rate ($/MWh) | E24: ---- | F24: 0.1705933914 | G24: 0.1719354477 | H24: 0.1732934035 | I24: 0.1746675109 | J24: =J16-I16 -> 0.1760580271 | K24: 0.1774652143 | L24: 0.1788893402 | M24: 0.1803306776 | N24: 0.1817895051 | O24: 0 | P24: 0 | Q24: 0 | R24: 0 | S24: 0 | T24: 0 | U24: 0 | V24: 0 | W24: 0 | X24: 0
D25: Customer ($/Month) | E25: ---- | F25: =F17-E17 -> 0 | G25: =G17-F17 -> 0 | H25: 0 | I25: 0 | J25: 0 | K25: 0 | L25: 0 | M25: 0 | N25: 0 | O25: 0 | P25: 0 | Q25: 0 | R25: 0 | S25: 0 | T25: 0 | U25: 0 | V25: 0 | W25: 0 | X25: 0
D26: Minimum bill ($) | E26: ---- | F26: 0 | G26: 0 | H26: 0 | I26: 0 | J26: 0 | K26: 0 | L26: 0 | M26: 0 | N26: 0 | O26: 0 | P26: 0 | Q26: 0 | R26: 0 | S26: 0 | T26: 0 | U26: 0 | V26: 0 | W26: 0 | X26: 0
D28: Energy Rate - variable portion (%) | E28: ---- | F28: =F14/E14-1 -> -0.002669919088 | G28: =G14/F14-1 -> -0.002698127094 | H28: =H14/G14-1 -> -0.00272679429 | I28: -0.002755930906 | J28: -0.002785547461 | K28: -0.002815654776 | L28: -0.002846263987 | M28: -0.002877386552 | N28: -0.002909034265 | O28: 0 | P28: 0 | Q28: 0 | R28: 0 | S28: 0 | T28: 0 | U28: 0 | V28: 0 | W28: 0 | X28: 0
D29: Energy Rate - fixed portion (%) | E29: ---- | F29: =F15/E15-1 -> 0.003918082793 | G29: 0.00393349455 | H29: =H15/G15-1 -> 0.003949028031 | I29: 0.003964684682 | J29: 0.003980465974 | K29: 0.003996373402 | L29: 0.004012408485 | M29: 0.004028572764 | N29: 0.004044867809 | O29: 0 | P29: 0 | Q29: 0 | R29: 0 | S29: 0 | T29: 0 | U29: 0 | V29: 0 | W29: 0 | X29: 0
D30: Total Energy Rate (%) | E30: ---- | F30: 0.001731209275 | G30: 0.001741813236 | H30: =H16/G16-1 -> 0.001752517616 | I30: 0.00176332372 | J30: 0.001774232873 | K30: 0.001785246425 | L30: 0.001796365745 | M30: 0.001807592228 | N30: 0.001818927293 | O30: 0 | P30: 0 | Q30: 0 | R30: 0 | S30: 0 | T30: 0 | U30: 0 | V30: 0 | W30: 0 | X30: 0

Sheet Reference
B2: Input References
B3: RMP Residential Tariff
B4: https://www.rockymountainpower.net/content/dam/rocky_mountain_power/doc/About_Us/Rates_and_Regulation/Utah/Approved_Tariffs/Rate_Schedules/Residential_Service.pdf
B6: Customer Charge
B7: Single Phase | C7: 6 | D7: per customer month
B8: Three phase | C8: 12 | D8: per customer month
B9: Energy Charge | C9: cents per kwh | D9: usage block
B10: Summer Block 1 | C10: 8.8498 | D10: 400 | E10: kWh | F10: 5 | G10: moths of the year
B11: Summer Block 2 | C11: 11.5429 | D11: 600 | E11: kWh | F11: 5 | G11: moths of the year
B12: Summer Block 3 | C12: 14.4508 | E12: all remaining kWh | F12: 5 | G12: moths of the year
B13: Winter Block 1 | C13: 8.8498 | D13: 400 | F13: 7 | G13: months of the year
B14: Winter Block 2 | C14: 10.3111 | D14: 600 | E14: all remaining kWh | F14: 7 | G14: months of the year
B16: Summer Average | C16: =AVERAGE(C10:C11) -> 10.19635 | D16: Synapse Calculation
B17: Winter Average | C17: =AVERAGE(C13:C14) -> 9.58045 | D17: Synapse Calculation
B18: Annual Weighted Average | C18: =((F10/12)*C16)+((F13/12)*C17) -> 9.837075 | D18: Synapse Calculation
B20: Minimum Bill
B21: Single Phase | C21: 8 | D21: per customer month
B22: Three phase | C22: 16 | D22: per customer month
B24: Utah Solar Generation Profile
B25: Available online at: www.pvwatts.nrel.gov
B26: PVWatts: Monthly PV Performance Data
B27: Requested Location: | C27: Salt Lake City Utah
B28: Location: | C28: SALT LAKE CITY, UT
B29: Lat (deg N): | C29: 40.77
B30: Long (deg W): | C30: 111.97
B31: Elev (m): | C31: 1288
B32: DC System Size (kW): | C32: 5
B33: Module Type: | C33: Standard
B34: Array Type: | C34: Fixed (roof mount)
B35: Array Tilt (deg): | C35: 20
B36: Array Azimuth (deg): | C36: 180
B37: System Losses: | C37: 14
B38: Invert Efficiency: | C38: 96
B39: DC to AC Size Ratio: | C39: 1.1
B40: Average Cost of Electricity Purchased from Utility ($/kWh): | C40: 0.1
B41: Initial Cost | C41: 3.3
B42: Cost of Electricity Generated by System ($/kWh): | C42: 0.18
B44: Month | C44: AC System Output(kWh) | D44: Solar Radiation (kWh/m^2/day) | E44: Plane of Array Irradiance (W/m^2) | F44: DC array Output (kWh) | G44: Value ($)
B45: 1 | C45: 362.8890076 | D45: 2.75612473 | E45: 85.43986511 | F45: 381.1025391 | G45: 37.41
B46: 2 | C46: 455.8474121 | D46: 3.8986764 | E46: 109.162941 | F46: 477.0622253 | G46: 47
B47: 3 | C47: 608.9019165 | D47: 4.83562851 | E47: 149.90448 | F47: 636.7689209 | G47: 62.78
B48: 4 | C48: 678.0981445 | D48: 5.71737099 | E48: 171.5211334 | F48: 708.862915 | G48: 69.91
B49: 5 | C49: 836.8475952 | D49: 7.01864862 | E49: 217.5781097 | F49: 873.9233398 | G49: 86.28
B50: 6 | C50: 802.8485107 | D50: 7.2568922 | E50: 217.7067718 | F50: 838.4519653 | G50: 82.77
B51: 7 | C51: 840.4923706 | D51: 7.55199099 | E51: 234.1117249 | F51: 877.5559082 | G51: 86.65
B52: 8 | C52: 812.5726318 | D52: 7.21767378 | E52: 223.7478943 | F52: 848.5435181 | G52: 83.78
B53: 9 | C53: 698.034729 | D53: 6.16007996 | E53: 184.8023987 | F53: 728.774231 | G53: 71.97
B54: 10 | C54: 594.208374 | D54: 4.93516588 | E54: 152.9901428 | F54: 620.8773193 | G54: 61.26
B55: 11 | C55: 401.7036743 | D55: 3.31421304 | E55: 99.4263916 | F55: 421.0104675 | G55: 41.42
B56: 12 | C56: 298.8479309 | D56: 2.268929 | E56: 70.33679962 | F56: 314.5162964 | G56: 30.81
B57: Total | C57: 7391.292297 | D57: 62.9313941 | E57: 1916.728653 | F57: 7727.449646 | G57: 762.04
B59: Avoided Costs in Utah
B60: Value of Solar in Utah Clean Power Research 2014.
B61: Available online: http://www.psc.utah.gov/utilities/electric/13docs/13035184/255147Exhibit%20A%20to%20Wright%20Testimony%20-%20UCE%202_1%20DT%20-%20Value%20of%20Solar%20in%20Utah%205-22-2014.pdf
B62: Fuel Value | C62: 0.043 | D62: ($/kWh) | F62: =C62*Reference!$C$70 -> 43 | G62: $/MWh
B63: Plant O&M Value | C63: 0.013 | D63: ($/kWh) | F63: =C63*Reference!$C$70 -> 13 | G63: $/MWh
B64: Generation Capacity Value | C64: 0.014 | D64: ($/kWh) | F64: =C64*Reference!$C$70 -> 14 | G64: $/MWh
B65: Avoided T&D Capacity Cost | C65: 0.011 | D65: ($/kWh) | F65: =C65*Reference!$C$70 -> 11 | G65: $/MWh
B66: Avoided Environmental Cost | C66: 0.009 | D66: ($/kWh) | F66: =C66*Reference!$C$70 -> 9 | G66: $/MWh
B67: Fuel Price Guarantee Value | C67: 0.026 | D67: ($/kWh) | F67: =C67*Reference!$C$70 -> 26 | G67: $/MWh
B69: Conversion factors
B70: kWh per MWh | C70: 1000
B71: cents per dollar | C71: 100

Sheet DataTable
B6: =VALUE(LEFT($D$6,FIND("|",$D$6)-1)) -> 60 | C6: =VALUE(RIGHT($D$6,LEN($D$6)-FIND("|",$D$6))) -> 0.005 | D6: 60|0.005
E7: =Cost_Calculations!E2 -> 2015 | F7: =Cost_Calculations!F2 -> 2016 | G7: =Cost_Calculations!G2 -> 2017 | H7: =Cost_Calculations!H2 -> 2018 | I7: =Cost_Calculations!I2 -> 2019 | J7: =Cost_Calculations!J2 -> 2020 | K7: =Cost_Calculations!K2 -> 2021 | L7: =Cost_Calculations!L2 -> 2022 | M7: =Cost_Calculations!M2 -> 2023 | N7: =Cost_Calculations!N2 -> 2024 | O7: =Cost_Calculations!O2 -> 2025 | P7: =Cost_Calculations!P2 -> 2026 | Q7: =Cost_Calculations!Q2 -> 2027 | R7: =Cost_Calculations!R2 -> 2028 | S7: =Cost_Calculations!S2 -> 2029 | T7: =Cost_Calculations!T2 -> 2030 | U7: =Cost_Calculations!U2 -> 2031 | V7: =Cost_Calculations!V2 -> 2032 | W7: =Cost_Calculations!W2 -> 2033 | X7: =Cost_Calculations!X2 -> 2034 | Y7: =Cost_Calculations!E2 -> 2015 | Z7: =Cost_Calculations!F2 -> 2016 | AA7: =Cost_Calculations!G2 -> 2017 | AB7: =Cost_Calculations!H2 -> 2018 | AC7: =Cost_Calculations!I2 -> 2019 | AD7: =Cost_Calculations!J2 -> 2020 | AE7: =Cost_Calculations!K2 -> 2021 | AF7: =Cost_Calculations!L2 -> 2022 | AG7: =Cost_Calculations!M2 -> 2023 | AH7: =Cost_Calculations!N2 -> 2024 | AI7: =Cost_Calculations!O2 -> 2025 | AJ7: =Cost_Calculations!P2 -> 2026 | AK7: =Cost_Calculations!Q2 -> 2027 | AL7: =Cost_Calculations!R2 -> 2028 | AM7: =Cost_Calculations!S2 -> 2029 | AN7: =Cost_Calculations!T2 -> 2030 | AO7: =Cost_Calculations!U2 -> 2031 | AP7: =Cost_Calculations!V2 -> 2032 | AQ7: =Cost_Calculations!W2 -> 2033 | AR7: =Cost_Calculations!X2 -> 2034 | AS7: =Cost_Calculations!E2 -> 2015 | AT7: =Cost_Calculations!F2 -> 2016 | AU7: =Cost_Calculations!G2 -> 2017 | AV7: =Cost_Calculations!H2 -> 2018 | AW7: =Cost_Calculations!I2 -> 2019 | AX7: =Cost_Calculations!J2 -> 2020 | AY7: =Cost_Calculations!K2 -> 2021 | AZ7: =Cost_Calculations!L2 -> 2022 | BA7: =Cost_Calculations!M2 -> 2023 | BB7: =Cost_Calculations!N2 -> 2024 | BC7: =Cost_Calculations!O2 -> 2025 | BD7: =Cost_Calculations!P2 -> 2026 | BE7: =Cost_Calculations!Q2 -> 2027 | BF7: =Cost_Calculations!R2 -> 2028 | BG7: =Cost_Calculations!S2 -> 2029 | BH7: =Cost_Calculations!T2 -> 2030 | BI7: =Cost_Calculations!U2 -> 2031 | BJ7: =Cost_Calculations!V2 -> 2032 | BK7: =Cost_Calculations!W2 -> 2033 | BL7: =Cost_Calculations!X2 -> 2034
B8: Avoided Cost | C8: Annual Pen | E8: =Cost_Calculations!$D$53&" "&Cost_Calculations!E2 -> Cumulative PV of Benefits 2015 | F8: =Cost_Calculations!$D$53&" "&Cost_Calculations!F2 -> Cumulative PV of Benefits 2016 | G8: =Cost_Calculations!$D$53&" "&Cost_Calculations!G2 -> Cumulative PV of Benefits 2017 | H8: =Cost_Calculations!$D$53&" "&Cost_Calculations!H2 -> Cumulative PV of Benefits 2018 | I8: =Cost_Calculations!$D$53&" "&Cost_Calculations!I2 -> Cumulative PV of Benefits 2019 | J8: =Cost_Calculations!$D$53&" "&Cost_Calculations!J2 -> Cumulative PV of Benefits 2020 | K8: =Cost_Calculations!$D$53&" "&Cost_Calculations!K2 -> Cumulative PV of Benefits 2021 | L8: =Cost_Calculations!$D$53&" "&Cost_Calculations!L2 -> Cumulative PV of Benefits 2022 | M8: =Cost_Calculations!$D$53&" "&Cost_Calculations!M2 -> Cumulative PV of Benefits 2023 | N8: =Cost_Calculations!$D$53&" "&Cost_Calculations!N2 -> Cumulative PV of Benefits 2024 | O8: =Cost_Calculations!$D$53&" "&Cost_Calculations!O2 -> Cumulative PV of Benefits 2025 | P8: =Cost_Calculations!$D$53&" "&Cost_Calculations!P2 -> Cumulative PV of Benefits 2026 | Q8: =Cost_Calculations!$D$53&" "&Cost_Calculations!Q2 -> Cumulative PV of Benefits 2027 | R8: =Cost_Calculations!$D$53&" "&Cost_Calculations!R2 -> Cumulative PV of Benefits 2028 | S8: =Cost_Calculations!$D$53&" "&Cost_Calculations!S2 -> Cumulative PV of Benefits 2029 | T8: =Cost_Calculations!$D$53&" "&Cost_Calculations!T2 -> Cumulative PV of Benefits 2030 | U8: =Cost_Calculations!$D$53&" "&Cost_Calculations!U2 -> Cumulative PV of Benefits 2031 | V8: =Cost_Calculations!$D$53&" "&Cost_Calculations!V2 -> Cumulative PV of Benefits 2032 | W8: =Cost_Calculations!$D$53&" "&Cost_Calculations!W2 -> Cumulative PV of Benefits 2033 | X8: =Cost_Calculations!$D$53&" "&Cost_Calculations!X2 -> Cumulative PV of Benefits 2034 | Y8: =Cost_Calculations!$D$54&" "&Cost_Calculations!E2 -> Cumulative PV of Costs 2015 | Z8: =Cost_Calculations!$D$54&" "&Cost_Calculations!F2 -> Cumulative PV of Costs 2016 | AA8: =Cost_Calculations!$D$54&" "&Cost_Calculations!G2 -> Cumulative PV of Costs 2017 | AB8: =Cost_Calculations!$D$54&" "&Cost_Calculations!H2 -> Cumulative PV of Costs 2018 | AC8: =Cost_Calculations!$D$54&" "&Cost_Calculations!I2 -> Cumulative PV of Costs 2019 | AD8: =Cost_Calculations!$D$54&" "&Cost_Calculations!J2 -> Cumulative PV of Costs 2020 | AE8: =Cost_Calculations!$D$54&" "&Cost_Calculations!K2 -> Cumulative PV of Costs 2021 | AF8: =Cost_Calculations!$D$54&" "&Cost_Calculations!L2 -> Cumulative PV of Costs 2022 | AG8: =Cost_Calculations!$D$54&" "&Cost_Calculations!M2 -> Cumulative PV of Costs 2023 | AH8: =Cost_Calculations!$D$54&" "&Cost_Calculations!N2 -> Cumulative PV of Costs 2024 | AI8: =Cost_Calculations!$D$54&" "&Cost_Calculations!O2 -> Cumulative PV of Costs 2025 | AJ8: =Cost_Calculations!$D$54&" "&Cost_Calculations!P2 -> Cumulative PV of Costs 2026 | AK8: =Cost_Calculations!$D$54&" "&Cost_Calculations!Q2 -> Cumulative PV of Costs 2027 | AL8: =Cost_Calculations!$D$54&" "&Cost_Calculations!R2 -> Cumulative PV of Costs 2028 | AM8: =Cost_Calculations!$D$54&" "&Cost_Calculations!S2 -> Cumulative PV of Costs 2029 | AN8: =Cost_Calculations!$D$54&" "&Cost_Calculations!T2 -> Cumulative PV of Costs 2030 | AO8: =Cost_Calculations!$D$54&" "&Cost_Calculations!U2 -> Cumulative PV of Costs 2031 | AP8: =Cost_Calculations!$D$54&" "&Cost_Calculations!V2 -> Cumulative PV of Costs 2032 | AQ8: =Cost_Calculations!$D$54&" "&Cost_Calculations!W2 -> Cumulative PV of Costs 2033 | AR8: =Cost_Calculations!$D$54&" "&Cost_Calculations!X2 -> Cumulative PV of Costs 2034 | AS8: Cumulative NPV | AT8: Cumulative NPV | AU8: Cumulative NPV | AV8: Cumulative NPV | AW8: Cumulative NPV | AX8: Cumulative NPV | AY8: Cumulative NPV | AZ8: Cumulative NPV | BA8: Cumulative NPV | BB8: Cumulative NPV | BC8: Cumulative NPV | BD8: Cumulative NPV | BE8: Cumulative NPV | BF8: Cumulative NPV | BG8: Cumulative NPV | BH8: Cumulative NPV | BI8: Cumulative NPV | BJ8: Cumulative NPV | BK8: Cumulative NPV | BL8: Cumulative NPV | BM8: =Rate_Calculations!$D$15&" "&Cost_Calculations!E2 -> Energy Rate impact due to AC (¢/kWh) 2015 | BN8: =Rate_Calculations!$D$15&" "&Cost_Calculations!F2 -> Energy Rate impact due to AC (¢/kWh) 2016 | BO8: =Rate_Calculations!$D$15&" "&Cost_Calculations!G2 -> Energy Rate impact due to AC (¢/kWh) 2017 | BP8: =Rate_Calculations!$D$15&" "&Cost_Calculations!H2 -> Energy Rate impact due to AC (¢/kWh) 2018 | BQ8: =Rate_Calculations!$D$15&" "&Cost_Calculations!I2 -> Energy Rate impact due to AC (¢/kWh) 2019 | BR8: =Rate_Calculations!$D$15&" "&Cost_Calculations!J2 -> Energy Rate impact due to AC (¢/kWh) 2020 | BS8: =Rate_Calculations!$D$15&" "&Cost_Calculations!K2 -> Energy Rate impact due to AC (¢/kWh) 2021 | BT8: =Rate_Calculations!$D$15&" "&Cost_Calculations!L2 -> Energy Rate impact due to AC (¢/kWh) 2022 | BU8: =Rate_Calculations!$D$15&" "&Cost_Calculations!M2 -> Energy Rate impact due to AC (¢/kWh) 2023 | BV8: =Rate_Calculations!$D$15&" "&Cost_Calculations!N2 -> Energy Rate impact due to AC (¢/kWh) 2024 | BW8: =Rate_Calculations!$D$15&" "&Cost_Calculations!O2 -> Energy Rate impact due to AC (¢/kWh) 2025 | BX8: =Rate_Calculations!$D$15&" "&Cost_Calculations!P2 -> Energy Rate impact due to AC (¢/kWh) 2026 | BY8: =Rate_Calculations!$D$15&" "&Cost_Calculations!Q2 -> Energy Rate impact due to AC (¢/kWh) 2027 | BZ8: =Rate_Calculations!$D$15&" "&Cost_Calculations!R2 -> Energy Rate impact due to AC (¢/kWh) 2028 | CA8: =Rate_Calculations!$D$15&" "&Cost_Calculations!S2 -> Energy Rate impact due to AC (¢/kWh) 2029 | CB8: =Rate_Calculations!$D$15&" "&Cost_Calculations!T2 -> Energy Rate impact due to AC (¢/kWh) 2030 | CC8: =Rate_Calculations!$D$15&" "&Cost_Calculations!U2 -> Energy Rate impact due to AC (¢/kWh) 2031 | CD8: =Rate_Calculations!$D$15&" "&Cost_Calculations!V2 -> Energy Rate impact due to AC (¢/kWh) 2032 | CE8: =Rate_Calculations!$D$15&" "&Cost_Calculations!W2 -> Energy Rate impact due to AC (¢/kWh) 2033 | CF8: =Rate_Calculations!$D$15&" "&Cost_Calculations!X2 -> Energy Rate impact due to AC (¢/kWh) 2034 | CG8: =Rate_Calculations!$D$16&" "&Cost_Calculations!E2 -> Energy rate impact due to lost revenues (¢/kWh) 2015 | CH8: =Rate_Calculations!$D$16&" "&Cost_Calculations!F2 -> Energy rate impact due to lost revenues (¢/kWh) 2016 | CI8: =Rate_Calculations!$D$16&" "&Cost_Calculations!G2 -> Energy rate impact due to lost revenues (¢/kWh) 2017 | CJ8: =Rate_Calculations!$D$16&" "&Cost_Calculations!H2 -> Energy rate impact due to lost revenues (¢/kWh) 2018 | CK8: =Rate_Calculations!$D$16&" "&Cost_Calculations!I2 -> Energy rate impact due to lost revenues (¢/kWh) 2019 | CL8: =Rate_Calculations!$D$16&" "&Cost_Calculations!J2 -> Energy rate impact due to lost revenues (¢/kWh) 2020 | CM8: =Rate_Calculations!$D$16&" "&Cost_Calculations!K2 -> Energy rate impact due to lost revenues (¢/kWh) 2021 | CN8: =Rate_Calculations!$D$16&" "&Cost_Calculations!L2 -> Energy rate impact due to lost revenues (¢/kWh) 2022 | CO8: =Rate_Calculations!$D$16&" "&Cost_Calculations!M2 -> Energy rate impact due to lost revenues (¢/kWh) 2023 | CP8: =Rate_Calculations!$D$16&" "&Cost_Calculations!N2 -> Energy rate impact due to lost revenues (¢/kWh) 2024 | CQ8: =Rate_Calculations!$D$16&" "&Cost_Calculations!O2 -> Energy rate impact due to lost revenues (¢/kWh) 2025 | CR8: =Rate_Calculations!$D$16&" "&Cost_Calculations!P2 -> Energy rate impact due to lost revenues (¢/kWh) 2026 | CS8: =Rate_Calculations!$D$16&" "&Cost_Calculations!Q2 -> Energy rate impact due to lost revenues (¢/kWh) 2027 | CT8: =Rate_Calculations!$D$16&" "&Cost_Calculations!R2 -> Energy rate impact due to lost revenues (¢/kWh) 2028 | CU8: =Rate_Calculations!$D$16&" "&Cost_Calculations!S2 -> Energy rate impact due to lost revenues (¢/kWh) 2029 | CV8: =Rate_Calculations!$D$16&" "&Cost_Calculations!T2 -> Energy rate impact due to lost revenues (¢/kWh) 2030 | CW8: =Rate_Calculations!$D$16&" "&Cost_Calculations!U2 -> Energy rate impact due to lost revenues (¢/kWh) 2031 | CX8: =Rate_Calculations!$D$16&" "&Cost_Calculations!V2 -> Energy rate impact due to lost revenues (¢/kWh) 2032 | CY8: =Rate_Calculations!$D$16&" "&Cost_Calculations!W2 -> Energy rate impact due to lost revenues (¢/kWh) 2033 | CZ8: =Rate_Calculations!$D$16&" "&Cost_Calculations!X2 -> Energy rate impact due to lost revenues (¢/kWh) 2034 | DA8: =Rate_Calculations!$D$17&" "&Cost_Calculations!E2 -> Energy rate impact of both (¢/kWh) 2015 | DB8: =Rate_Calculations!$D$17&" "&Cost_Calculations!F2 -> Energy rate impact of both (¢/kWh) 2016 | DC8: =Rate_Calculations!$D$17&" "&Cost_Calculations!G2 -> Energy rate impact of both (¢/kWh) 2017 | DD8: =Rate_Calculations!$D$17&" "&Cost_Calculations!H2 -> Energy rate impact of both (¢/kWh) 2018 | DE8: =Rate_Calculations!$D$17&" "&Cost_Calculations!I2 -> Energy rate impact of both (¢/kWh) 2019 | DF8: =Rate_Calculations!$D$17&" "&Cost_Calculations!J2 -> Energy rate impact of both (¢/kWh) 2020 | DG8: =Rate_Calculations!$D$17&" "&Cost_Calculations!K2 -> Energy rate impact of both (¢/kWh) 2021 | DH8: =Rate_Calculations!$D$17&" "&Cost_Calculations!L2 -> Energy rate impact of both (¢/kWh) 2022 | DI8: =Rate_Calculations!$D$17&" "&Cost_Calculations!M2 -> Energy rate impact of both (¢/kWh) 2023 | DJ8: =Rate_Calculations!$D$17&" "&Cost_Calculations!N2 -> Energy rate impact of both (¢/kWh) 2024 | DK8: =Rate_Calculations!$D$17&" "&Cost_Calculations!O2 -> Energy rate impact of both (¢/kWh) 2025 | DL8: =Rate_Calculations!$D$17&" "&Cost_Calculations!P2 -> Energy rate impact of both (¢/kWh) 2026 | DM8: =Rate_Calculations!$D$17&" "&Cost_Calculations!Q2 -> Energy rate impact of both (¢/kWh) 2027 | DN8: =Rate_Calculations!$D$17&" "&Cost_Calculations!R2 -> Energy rate impact of both (¢/kWh) 2028 | DO8: =Rate_Calculations!$D$17&" "&Cost_Calculations!S2 -> Energy rate impact of both (¢/kWh) 2029 | DP8: =Rate_Calculations!$D$17&" "&Cost_Calculations!T2 -> Energy rate impact of both (¢/kWh) 2030 | DQ8: =Rate_Calculations!$D$17&" "&Cost_Calculations!U2 -> Energy rate impact of both (¢/kWh) 2031 | DR8: =Rate_Calculations!$D$17&" "&Cost_Calculations!V2 -> Energy rate impact of both (¢/kWh) 2032 | DS8: =Rate_Calculations!$D$17&" "&Cost_Calculations!W2 -> Energy rate impact of both (¢/kWh) 2033 | DT8: =Rate_Calculations!$D$17&" "&Cost_Calculations!X2 -> Energy rate impact of both (¢/kWh) 2034 | DU8: PVRR Without PV | DV8: PVRR With PV | DW8: Net Benefits | DX8: BCR
E9: =Cost_Calculations!E53 -> 1627378.521 | F9: =Cost_Calculations!F53 -> 4743307.063 | G9: =Cost_Calculations!G53 -> 9217839.519 | H9: =Cost_Calculations!H53 -> 14929407.01 | I9: =Cost_Calculations!I53 -> 21764339.68 | J9: =Cost_Calculations!J53 -> 29616413.98 | K9: =Cost_Calculations!K53 -> 38386424.31 | L9: =Cost_Calculations!L53 -> 47981777.51 | M9: =Cost_Calculations!M53 -> 58316109.33 | N9: =Cost_Calculations!N53 -> 69308921.49 | O9: =Cost_Calculations!O53 -> 79832845.93 | P9: =Cost_Calculations!P53 -> 89907882.59 | Q9: =Cost_Calculations!Q53 -> 99553178.35 | R9: =Cost_Calculations!R53 -> 108787063.4 | S9: =Cost_Calculations!S53 -> 117627086 | T9: =Cost_Calculations!T53 -> 126090046.1 | U9: =Cost_Calculations!U53 -> 134192026.8 | V9: =Cost_Calculations!V53 -> 141948425.5 | W9: =Cost_Calculations!W53 -> 149373982.4 | X9: =Cost_Calculations!X53 -> 156482809.5 | Y9: =Cost_Calculations!E$54 -> 135614.8767 | Z9: =Cost_Calculations!F$54 -> 395275.5886 | AA9: =Cost_Calculations!G$54 -> 768153.2932 | AB9: =Cost_Calculations!H$54 -> 1244117.251 | AC9: =Cost_Calculations!I$54 -> 1813694.973 | AD9: =Cost_Calculations!J$54 -> 2468034.499 | AE9: =Cost_Calculations!K$54 -> 3198868.692 | AF9: =Cost_Calculations!L$54 -> 3998481.459 | AG9: =Cost_Calculations!M$54 -> 4859675.778 | AH9: =Cost_Calculations!N$54 -> 5775743.458 | AI9: =Cost_Calculations!O$54 -> 6652737.16 | AJ9: =Cost_Calculations!P$54 -> 7492323.549 | AK9: =Cost_Calculations!Q$54 -> 8296098.196 | AL9: =Cost_Calculations!R$54 -> 9065588.616 | AM9: =Cost_Calculations!S$54 -> 9802257.17 | AN9: =Cost_Calculations!T$54 -> 10507503.84 | AO9: =Cost_Calculations!U$54 -> 11182668.9 | AP9: =Cost_Calculations!V$54 -> 11829035.45 | AQ9: =Cost_Calculations!W$54 -> 12447831.87 | AR9: =Cost_Calculations!X$54 -> 13040234.12 | AS9: =Cost_Calculations!E55 -> 1491763.644 | AT9: =Cost_Calculations!F55 -> 4348031.474 | AU9: =Cost_Calculations!G55 -> 8449686.226 | AV9: =Cost_Calculations!H55 -> 13685289.76 | AW9: =Cost_Calculations!I55 -> 19950644.71 | AX9: =Cost_Calculations!J55 -> 27148379.49 | AY9: =Cost_Calculations!K55 -> 35187555.61 | AZ9: =Cost_Calculations!L55 -> 43983296.05 | BA9: =Cost_Calculations!M55 -> 53456433.56 | BB9: =Cost_Calculations!N55 -> 63533178.03 | BC9: =Cost_Calculations!O55 -> 73180108.76 | BD9: =Cost_Calculations!P55 -> 82415559.04 | BE9: =Cost_Calculations!Q55 -> 91257080.16 | BF9: =Cost_Calculations!R55 -> 99721474.78 | BG9: =Cost_Calculations!S55 -> 107824828.9 | BH9: =Cost_Calculations!T55 -> 115582542.3 | BI9: =Cost_Calculations!U55 -> 123009357.9 | BJ9: =Cost_Calculations!V55 -> 130119390 | BK9: =Cost_Calculations!W55 -> 136926150.6 | BL9: =Cost_Calculations!X55 -> 143442575.4 | BM9: =Rate_Calculations!E15 -> -0.02138190323 | BN9: =Rate_Calculations!F15 -> -0.04276380645 | BO9: =Rate_Calculations!G15 -> -0.06414570968 | BP9: =Rate_Calculations!H15 -> -0.08552761291 | BQ9: =Rate_Calculations!I15 -> -0.1069095161 | BR9: =Rate_Calculations!J15 -> -0.1282914194 | BS9: =Rate_Calculations!K15 -> -0.1496733226 | BT9: =Rate_Calculations!L15 -> -0.1710552258 | BU9: =Rate_Calculations!M15 -> -0.192437129 | BV9: =Rate_Calculations!N15 -> -0.2138190323 | BW9: =Rate_Calculations!O15 -> -0.2138190323 | BX9: =Rate_Calculations!P15 -> -0.2138190323 | BY9: =Rate_Calculations!Q15 -> -0.2138190323 | BZ9: =Rate_Calculations!R15 -> -0.2138190323 | CA9: =Rate_Calculations!S15 -> -0.2138190323 | CB9: =Rate_Calculations!T15 -> -0.2138190323 | CC9: =Rate_Calculations!U15 -> -0.2138190323 | CD9: =Rate_Calculations!V15 -> -0.2138190323 | CE9: =Rate_Calculations!W15 -> -0.2138190323 | CF9: =Rate_Calculations!X15 -> -0.2138190323 | CG9: =Rate_Calculations!E16 -> 0.03830860195 | CH9: =Rate_Calculations!F16 -> 0.07674984431 | CI9: =Rate_Calculations!G16 -> 0.1153252923 | CJ9: =Rate_Calculations!H16 -> 0.1540365359 | CK9: =Rate_Calculations!I16 -> 0.1928851902 | CL9: =Rate_Calculations!J16 -> 0.2318728962 | CM9: =Rate_Calculations!K16 -> 0.2710013208 | CN9: =Rate_Calculations!L16 -> 0.3102721581 | CO9: =Rate_Calculations!M16 -> 0.349687129 | CP9: =Rate_Calculations!N16 -> 0.3892479828 | CQ9: =Rate_Calculations!O16 -> 0.3892479828 | CR9: =Rate_Calculations!P16 -> 0.3892479828 | CS9: =Rate_Calculations!Q16 -> 0.3892479828 | CT9: =Rate_Calculations!R16 -> 0.3892479828 | CU9: =Rate_Calculations!S16 -> 0.3892479828 | CV9: =Rate_Calculations!T16 -> 0.3892479828 | CW9: =Rate_Calculations!U16 -> 0.3892479828 | CX9: =Rate_Calculations!V16 -> 0.3892479828 | CY9: =Rate_Calculations!W16 -> 0.3892479828 | CZ9: =Rate_Calculations!X16 -> 0.3892479828 | DA9: =Rate_Calculations!E$17 -> 0.01692669872 | DB9: =Rate_Calculations!F$17 -> 0.03398603786 | DC9: =Rate_Calculations!G$17 -> 0.05117958263 | DD9: =Rate_Calculations!H$17 -> 0.06850892298 | DE9: =Rate_Calculations!I$17 -> 0.08597567408 | DF9: =Rate_Calculations!J$17 -> 0.1035814768 | DG9: =Rate_Calculations!K$17 -> 0.1213279982 | DH9: =Rate_Calculations!L$17 -> 0.1392169322 | DI9: =Rate_Calculations!M$17 -> 0.15725 | DJ9: =Rate_Calculations!N$17 -> 0.1754289505 | DK9: =Rate_Calculations!O$17 -> 0.1754289505 | DL9: =Rate_Calculations!P$17 -> 0.1754289505 | DM9: =Rate_Calculations!Q$17 -> 0.1754289505 | DN9: =Rate_Calculations!R$17 -> 0.1754289505 | DO9: =Rate_Calculations!S$17 -> 0.1754289505 | DP9: =Rate_Calculations!T$17 -> 0.1754289505 | DQ9: =Rate_Calculations!U$17 -> 0.1754289505 | DR9: =Rate_Calculations!V$17 -> 0.1754289505 | DS9: =Rate_Calculations!W$17 -> 0.1754289505 | DT9: =Rate_Calculations!X$17 -> 0.1754289505 | DU9: =Cost_Calculations!E62 -> 1.008209828e+10 | DV9: =Cost_Calculations!E61 -> 9938655708 | DW9: =Cost_Calculations!E59 -> 143442575.4 | DX9: =Cost_Calculations!E60 -> 12
B10: 60 | C10: 0.005 | D10: =B10&"|"&C10 -> 60|0.005 | E10: 1627378.521 | F10: 4743307.063 | G10: 9217839.519 | H10: 14929407.01 | I10: 21764339.68 | J10: 29616413.98 | K10: 38386424.31 | L10: 47981777.51 | M10: 58316109.33 | N10: 69308921.49 | O10: 79832845.93 | P10: 89907882.59 | Q10: 99553178.35 | R10: 108787063.4 | S10: 117627086 | T10: 126090046.1 | U10: 134192026.8 | V10: 141948425.5 | W10: 149373982.4 | X10: 156482809.5 | Y10: 135614.8767 | Z10: 395275.5886 | AA10: 768153.2932 | AB10: 1244117.251 | AC10: 1813694.973 | AD10: 2468034.499 | AE10: 3198868.692 | AF10: 3998481.459 | AG10: 4859675.778 | AH10: 5775743.458 | AI10: 6652737.16 | AJ10: 7492323.549 | AK10: 8296098.196 | AL10: 9065588.616 | AM10: 9802257.17 | AN10: 10507503.84 | AO10: 11182668.9 | AP10: 11829035.45 | AQ10: 12447831.87 | AR10: 13040234.12 | AS10: 1491763.644 | AT10: 4348031.474 | AU10: 8449686.226 | AV10: 13685289.76 | AW10: 19950644.71 | AX10: 27148379.49 | AY10: 35187555.61 | AZ10: 43983296.05 | BA10: 53456433.56 | BB10: 63533178.03 | BC10: 73180108.76 | BD10: 82415559.04 | BE10: 91257080.16 | BF10: 99721474.78 | BG10: 107824828.9 | BH10: 115582542.3 | BI10: 123009357.9 | BJ10: 130119390 | BK10: 136926150.6 | BL10: 143442575.4 | BM10: -0.02138190323 | BN10: -0.04276380645 | BO10: -0.06414570968 | BP10: -0.08552761291 | BQ10: -0.1069095161 | BR10: -0.1282914194 | BS10: -0.1496733226 | BT10: -0.1710552258 | BU10: -0.192437129 | BV10: -0.2138190323 | BW10: -0.2138190323 | BX10: -0.2138190323 | BY10: -0.2138190323 | BZ10: -0.2138190323 | CA10: -0.2138190323 | CB10: -0.2138190323 | CC10: -0.2138190323 | CD10: -0.2138190323 | CE10: -0.2138190323 | CF10: -0.2138190323 | CG10: 0.03830860195 | CH10: 0.07674984431 | CI10: 0.1153252923 | CJ10: 0.1540365359 | CK10: 0.1928851902 | CL10: 0.2318728962 | CM10: 0.2710013208 | CN10: 0.3102721581 | CO10: 0.349687129 | CP10: 0.3892479828 | CQ10: 0.3892479828 | CR10: 0.3892479828 | CS10: 0.3892479828 | CT10: 0.3892479828 | CU10: 0.3892479828 | CV10: 0.3892479828 | CW10: 0.3892479828 | CX10: 0.3892479828 | CY10: 0.3892479828 | CZ10: 0.3892479828 | DA10: 0.01692669872 | DB10: 0.03398603786 | DC10: 0.05117958263 | DD10: 0.06850892298 | DE10: 0.08597567408 | DF10: 0.1035814768 | DG10: 0.1213279982 | DH10: 0.1392169322 | DI10: 0.15725 | DJ10: 0.1754289505 | DK10: 0.1754289505 | DL10: 0.1754289505 | DM10: 0.1754289505 | DN10: 0.1754289505 | DO10: 0.1754289505 | DP10: 0.1754289505 | DQ10: 0.1754289505 | DR10: 0.1754289505 | DS10: 0.1754289505 | DT10: 0.1754289505 | DU10: 1.008209828e+10 | DV10: 9938655708 | DW10: 143442575.4 | DX10: 12 | DY10: 60 | DZ10: 0.005
B11: 60 | C11: 0.01 | D11: =B11&"|"&C11 -> 60|0.01 | E11: 3254757.041 | F11: 9486614.125 | G11: 18435679.04 | H11: 29858814.03 | I11: 43528679.36 | J11: 59232827.97 | K11: 76772848.61 | L11: 95963555.02 | M11: 116632218.7 | N11: 138617843 | O11: 159665691.9 | P11: 179815765.2 | Q11: 199106356.7 | R11: 217574126.8 | S11: 235254172.1 | T11: 252180092.2 | U11: 268384053.7 | V11: 283896850.9 | W11: 298747964.8 | X11: 312965618.9 | Y11: 271229.7535 | Z11: 790551.1771 | AA11: 1536306.586 | AB11: 2488234.502 | AC11: 3627389.947 | AD11: 4936068.997 | AE11: 6397737.384 | AF11: 7996962.918 | AG11: 9719351.555 | AH11: 11551486.92 | AI11: 13305474.32 | AJ11: 14984647.1 | AK11: 16592196.39 | AL11: 18131177.23 | AM11: 19604514.34 | AN11: 21015007.69 | AO11: 22365337.81 | AP11: 23658070.91 | AQ11: 24895663.74 | AR11: 26080468.25 | AS11: 2983527.288 | AT11: 8696062.948 | AU11: 16899372.45 | AV11: 27370579.53 | AW11: 39901289.41 | AX11: 54296758.97 | AY11: 70375111.23 | AZ11: 87966592.1 | BA11: 106912867.1 | BB11: 127066356.1 | BC11: 146360217.5 | BD11: 164831118.1 | BE11: 182514160.3 | BF11: 199442949.6 | BG11: 215649657.7 | BH11: 231165084.5 | BI11: 246018715.9 | BJ11: 260238780 | BK11: 273852301.1 | BL11: 286885150.7 | BM11: -0.04276380645 | BN11: -0.08552761291 | BO11: -0.1282914194 | BP11: -0.1710552258 | BQ11: -0.2138190323 | BR11: -0.2565828387 | BS11: -0.2993466452 | BT11: -0.3421104516 | BU11: -0.3848742581 | BV11: -0.4276380645 | BW11: -0.4276380645 | BX11: -0.4276380645 | BY11: -0.4276380645 | BZ11: -0.4276380645 | CA11: -0.4276380645 | CB11: -0.4276380645 | CC11: -0.4276380645 | CD11: -0.4276380645 | CE11: -0.4276380645 | CF11: -0.4276380645 | CG11: 0.07674984431 | CH11: 0.1540365359 | CI11: 0.2318728962 | CJ11: 0.3102721581 | CK11: 0.3892479828 | CL11: 0.4688144772 | CM11: 0.5489862121 | CN11: 0.6297782416 | CO11: 0.7112061231 | CP11: 0.7932859387 | CQ11: 0.7932859387 | CR11: 0.7932859387 | CS11: 0.7932859387 | CT11: 0.7932859387 | CU11: 0.7932859387 | CV11: 0.7932859387 | CW11: 0.7932859387 | CX11: 0.7932859387 | CY11: 0.7932859387 | CZ11: 0.7932859387 | DA11: 0.03398603786 | DB11: 0.06850892298 | DC11: 0.1035814768 | DD11: 0.1392169322 | DE11: 0.1754289505 | DF11: 0.2122316385 | DG11: 0.2496395669 | DH11: 0.2876677899 | DI11: 0.326331865 | DJ11: 0.3656478742 | DK11: 0.3656478742 | DL11: 0.3656478742 | DM11: 0.3656478742 | DN11: 0.3656478742 | DO11: 0.3656478742 | DP11: 0.3656478742 | DQ11: 0.3656478742 | DR11: 0.3656478742 | DS11: 0.3656478742 | DT11: 0.3656478742 | DU11: 1.008209828e+10 | DV11: 9795213133 | DW11: 286885150.7 | DX11: 12 | DY11: 60 | DZ11: 0.01
B12: 60 | C12: 0.02 | D12: 60|0.02 | E12: 6509514.083 | F12: 18973228.25 | G12: 36871358.08 | H12: 59717628.06 | I12: 87057358.72 | J12: 118465655.9 | K12: 153545697.2 | L12: 191927110 | M12: 233264437.3 | N12: 277235686 | O12: 319331383.7 | P12: 359631530.4 | Q12: 398212713.4 | R12: 435148253.6 | S12: 470508344.2 | T12: 504360184.4 | U12: 536768107.4 | V12: 567793701.8 | W12: 597495929.7 | X12: 625931237.9 | Y12: 542459.5069 | Z12: 1581102.354 | AA12: 3072613.173 | AB12: 4976469.005 | AC12: 7254779.893 | AD12: 9872137.995 | AE12: 12795474.77 | AF12: 15993925.84 | AG12: 19438703.11 | AH12: 23102973.83 | AI12: 26610948.64 | AJ12: 29969294.2 | AK12: 33184392.78 | AL12: 36262354.46 | AM12: 39209028.68 | AN12: 42030015.37 | AO12: 44730675.61 | AP12: 47316141.82 | AQ12: 49791327.47 | AR12: 52160936.49 | AS12: 5967054.576 | AT12: 17392125.9 | AU12: 33798744.9 | AV12: 54741159.05 | AW12: 79802578.83 | AX12: 108593517.9 | AY12: 140750222.5 | AZ12: 175933184.2 | BA12: 213825734.2 | BB12: 254132712.1 | BC12: 292720435.1 | BD12: 329662236.2 | BE12: 365028320.6 | BF12: 398885899.1 | BG12: 431299315.5 | BH12: 462330169.1 | BI12: 492037431.8 | BJ12: 520477560 | BK12: 547704602.2 | BL12: 573770301.4 | BM12: -0.08552761291 | BN12: -0.1710552258 | BO12: -0.2565828387 | BP12: -0.3421104516 | BQ12: -0.4276380645 | BR12: -0.5131656775 | BS12: -0.5986932904 | BT12: -0.6842209033 | BU12: -0.7697485162 | BV12: -0.8552761291 | BW12: -0.8552761291 | BX12: -0.8552761291 | BY12: -0.8552761291 | BZ12: -0.8552761291 | CA12: -0.8552761291 | CB12: -0.8552761291 | CC12: -0.8552761291 | CD12: -0.8552761291 | CE12: -0.8552761291 | CF12: -0.8552761291 | CG12: 0.1540365359 | CH12: 0.3102721581 | CI12: 0.4688144772 | CJ12: 0.6297782416 | CK12: 0.7932859387 | CL12: 0.9594684593 | CM12: 1.12846583 | CN12: 1.300428025 | CO12: 1.475515864 | CP12: 1.653902015 | CQ12: 1.653902015 | CR12: 1.653902015 | CS12: 1.653902015 | CT12: 1.653902015 | CU12: 1.653902015 | CV12: 1.653902015 | CW12: 1.653902015 | CX12: 1.653902015 | CY12: 1.653902015 | CZ12: 1.653902015 | DA12: 0.06850892298 | DB12: 0.1392169322 | DC12: 0.2122316385 | DD12: 0.2876677899 | DE12: 0.3656478742 | DF12: 0.4463027818 | DG12: 0.5297725395 | DH12: 0.6162071213 | DI12: 0.7057673482 | DJ12: 0.7986258862 | DK12: 0.7986258862 | DL12: 0.7986258862 | DM12: 0.7986258862 | DN12: 0.7986258862 | DO12: 0.7986258862 | DP12: 0.7986258862 | DQ12: 0.7986258862 | DR12: 0.7986258862 | DS12: 0.7986258862 | DT12: 0.7986258862 | DU12: 1.008209828e+10 | DV12: 9508327982 | DW12: 573770301.4 | DX12: 12 | DY12: 60 | DZ12: 0.02
B13: 120 | C13: 0.005 | D13: 120|0.005 | E13: 3254757.041 | F13: 9486614.125 | G13: 18435679.04 | H13: 29858814.03 | I13: 43528679.36 | J13: 59232827.97 | K13: 76772848.61 | L13: 95963555.02 | M13: 116632218.7 | N13: 138617843 | O13: 159665691.9 | P13: 179815765.2 | Q13: 199106356.7 | R13: 217574126.8 | S13: 235254172.1 | T13: 252180092.2 | U13: 268384053.7 | V13: 283896850.9 | W13: 298747964.8 | X13: 312965618.9 | Y13: 135614.8767 | Z13: 395275.5886 | AA13: 768153.2932 | AB13: 1244117.251 | AC13: 1813694.973 | AD13: 2468034.499 | AE13: 3198868.692 | AF13: 3998481.459 | AG13: 4859675.778 | AH13: 5775743.458 | AI13: 6652737.16 | AJ13: 7492323.549 | AK13: 8296098.196 | AL13: 9065588.616 | AM13: 9802257.17 | AN13: 10507503.84 | AO13: 11182668.9 | AP13: 11829035.45 | AQ13: 12447831.87 | AR13: 13040234.12 | AS13: 3119142.165 | AT13: 9091338.537 | AU13: 17667525.74 | AV13: 28614696.78 | AW13: 41714984.39 | AX13: 56764793.47 | AY13: 73573979.92 | AZ13: 91965073.56 | BA13: 111772542.9 | BB13: 132842099.5 | BC13: 153012954.7 | BD13: 172323441.6 | BE13: 190810258.5 | BF13: 208508538.2 | BG13: 225451914.9 | BH13: 241672588.4 | BI13: 257201384.8 | BJ13: 272067815.5 | BK13: 286300133 | BL13: 299925384.8 | BM13: -0.04470761584 | BN13: -0.08941523168 | BO13: -0.1341228475 | BP13: -0.1788304634 | BQ13: -0.2235380792 | BR13: -0.268245695 | BS13: -0.3129533109 | BT13: -0.3576609267 | BU13: -0.4023685426 | BV13: -0.4470761584 | BW13: -0.4470761584 | BX13: -0.4470761584 | BY13: -0.4470761584 | BZ13: -0.4470761584 | CA13: -0.4470761584 | CB13: -0.4470761584 | CC13: -0.4470761584 | CD13: -0.4470761584 | CE13: -0.4470761584 | CF13: -0.4470761584 | CG13: 0.03821756656 | CH13: 0.07638427602 | CI13: 0.1144995282 | CJ13: 0.1525627136 | CK13: 0.1905732128 | CL13: 0.2285303968 | CM13: 0.2664336262 | CN13: 0.3042822517 | CO13: 0.3420756133 | CP13: 0.3798130404 | CQ13: 0.3798130404 | CR13: 0.3798130404 | CS13: 0.3798130404 | CT13: 0.3798130404 | CU13: 0.3798130404 | CV13: 0.3798130404 | CW13: 0.3798130404 | CX13: 0.3798130404 | CY13: 0.3798130404 | CZ13: 0.3798130404 | DA13: -0.006490049278 | DB13: -0.01303095566 | DC13: -0.01962331928 | DD13: -0.02626774975 | DE13: -0.03296486637 | DF13: -0.03971529828 | DG13: -0.04651968468 | DH13: -0.05337867504 | DI13: -0.06029292928 | DJ13: -0.06726311801 | DK13: -0.06726311801 | DL13: -0.06726311801 | DM13: -0.06726311801 | DN13: -0.06726311801 | DO13: -0.06726311801 | DP13: -0.06726311801 | DQ13: -0.06726311801 | DR13: -0.06726311801 | DS13: -0.06726311801 | DT13: -0.06726311801 | DU13: 1.008209828e+10 | DV13: 9782172899 | DW13: 299925384.8 | DX13: 24 | DY13: 120 | DZ13: 0.005
B14: 120 | C14: 0.01 | D14: 120|0.01 | E14: 6509514.083 | F14: 18973228.25 | G14: 36871358.08 | H14: 59717628.06 | I14: 87057358.72 | J14: 118465655.9 | K14: 153545697.2 | L14: 191927110 | M14: 233264437.3 | N14: 277235686 | O14: 319331383.7 | P14: 359631530.4 | Q14: 398212713.4 | R14: 435148253.6 | S14: 470508344.2 | T14: 504360184.4 | U14: 536768107.4 | V14: 567793701.8 | W14: 597495929.7 | X14: 625931237.9 | Y14: 271229.7535 | Z14: 790551.1771 | AA14: 1536306.586 | AB14: 2488234.502 | AC14: 3627389.947 | AD14: 4936068.997 | AE14: 6397737.384 | AF14: 7996962.918 | AG14: 9719351.555 | AH14: 11551486.92 | AI14: 13305474.32 | AJ14: 14984647.1 | AK14: 16592196.39 | AL14: 18131177.23 | AM14: 19604514.34 | AN14: 21015007.69 | AO14: 22365337.81 | AP14: 23658070.91 | AQ14: 24895663.74 | AR14: 26080468.25 | AS14: 6238284.329 | AT14: 18182677.07 | AU14: 35335051.49 | AV14: 57229393.55 | AW14: 83429968.77 | AX14: 113529586.9 | AY14: 147147959.8 | AZ14: 183930147.1 | BA14: 223545085.8 | BB14: 265684199 | BC14: 306025909.4 | BD14: 344646883.3 | BE14: 381620517 | BF14: 417017076.3 | BG14: 450903829.8 | BH14: 483345176.8 | BI14: 514402769.6 | BJ14: 544135630.9 | BK14: 572600266 | BL14: 599850769.6 | BM14: -0.08941523168 | BN14: -0.1788304634 | BO14: -0.268245695 | BP14: -0.3576609267 | BQ14: -0.4470761584 | BR14: -0.5364913901 | BS14: -0.6259066217 | BT14: -0.7153218534 | BU14: -0.8047370851 | BV14: -0.8941523168 | BW14: -0.8941523168 | BX14: -0.8941523168 | BY14: -0.8941523168 | BZ14: -0.8941523168 | CA14: -0.8941523168 | CB14: -0.8941523168 | CC14: -0.8941523168 | CD14: -0.8941523168 | CE14: -0.8941523168 | CF14: -0.8941523168 | CG14: 0.07638427602 | CH14: 0.1525627136 | CI14: 0.2285303968 | CJ14: 0.3042822517 | CK14: 0.3798130404 | CL14: 0.455117354 | CM14: 0.5301896058 | CN14: 0.6050240238 | CO14: 0.6796146428 | CP14: 0.7539552966 | CQ14: 0.7539552966 | CR14: 0.7539552966 | CS14: 0.7539552966 | CT14: 0.7539552966 | CU14: 0.7539552966 | CV14: 0.7539552966 | CW14: 0.7539552966 | CX14: 0.7539552966 | CY14: 0.7539552966 | CZ14: 0.7539552966 | DA14: -0.01303095566 | DB14: -0.02626774975 | DC14: -0.03971529828 | DD14: -0.05337867504 | DE14: -0.06726311801 | DF14: -0.08137403605 | DG14: -0.09571701592 | DH14: -0.1102978297 | DI14: -0.1251224423 | DJ14: -0.1401970202 | DK14: -0.1401970202 | DL14: -0.1401970202 | DM14: -0.1401970202 | DN14: -0.1401970202 | DO14: -0.1401970202 | DP14: -0.1401970202 | DQ14: -0.1401970202 | DR14: -0.1401970202 | DS14: -0.1401970202 | DT14: -0.1401970202 | DU14: 1.008209828e+10 | DV14: 9482247514 | DW14: 599850769.6 | DX14: 24 | DY14: 120 | DZ14: 0.01
B15: 120 | C15: 0.02 | D15: 120|0.02 | E15: 13019028.17 | F15: 37946456.5 | G15: 73742716.15 | H15: 119435256.1 | I15: 174114717.4 | J15: 236931311.9 | K15: 307091394.4 | L15: 383854220.1 | M15: 466528874.7 | N15: 554471371.9 | O15: 638662767.4 | P15: 719263060.7 | Q15: 796425426.8 | R15: 870296507.2 | S15: 941016688.3 | T15: 1008720369 | U15: 1073536215 | V15: 1135587404 | W15: 1194991859 | X15: 1251862476 | Y15: 542459.5069 | Z15: 1581102.354 | AA15: 3072613.173 | AB15: 4976469.005 | AC15: 7254779.893 | AD15: 9872137.995 | AE15: 12795474.77 | AF15: 15993925.84 | AG15: 19438703.11 | AH15: 23102973.83 | AI15: 26610948.64 | AJ15: 29969294.2 | AK15: 33184392.78 | AL15: 36262354.46 | AM15: 39209028.68 | AN15: 42030015.37 | AO15: 44730675.61 | AP15: 47316141.82 | AQ15: 49791327.47 | AR15: 52160936.49 | AS15: 12476568.66 | AT15: 36365354.15 | AU15: 70670102.98 | AV15: 114458787.1 | AW15: 166859937.5 | AX15: 227059173.9 | AY15: 294295919.7 | AZ15: 367860294.2 | BA15: 447090171.6 | BB15: 531368398.1 | BC15: 612051818.8 | BD15: 689293766.5 | BE15: 763241034 | BF15: 834034152.7 | BG15: 901807659.7 | BH15: 966690353.5 | BI15: 1028805539 | BJ15: 1088271262 | BK15: 1145200532 | BL15: 1199701539 | BM15: -0.1788304634 | BN15: -0.3576609267 | BO15: -0.5364913901 | BP15: -0.7153218534 | BQ15: -0.8941523168 | BR15: -1.07298278 | BS15: -1.251813243 | BT15: -1.430643707 | BU15: -1.60947417 | BV15: -1.788304634 | BW15: -1.788304634 | BX15: -1.788304634 | BY15: -1.788304634 | BZ15: -1.788304634 | CA15: -1.788304634 | CB15: -1.788304634 | CC15: -1.788304634 | CD15: -1.788304634 | CE15: -1.788304634 | CF15: -1.788304634 | CG15: 0.1525627136 | CH15: 0.3042822517 | CI15: 0.455117354 | CJ15: 0.6050240238 | CK15: 0.7539552966 | CL15: 0.9018609864 | CM15: 1.048687404 | CN15: 1.194377046 | CO15: 1.338868251 | CP15: 1.482094814 | CQ15: 1.482094814 | CR15: 1.482094814 | CS15: 1.482094814 | CT15: 1.482094814 | CU15: 1.482094814 | CV15: 1.482094814 | CW15: 1.482094814 | CX15: 1.482094814 | CY15: 1.482094814 | CZ15: 1.482094814 | DA15: -0.02626774975 | DB15: -0.05337867504 | DC15: -0.08137403605 | DD15: -0.1102978297 | DE15: -0.1401970202 | DF15: -0.1711217937 | DG15: -0.2031258395 | DH15: -0.2362666606 | DI15: -0.2706059193 | DJ15: -0.3062098193 | DK15: -0.3062098193 | DL15: -0.3062098193 | DM15: -0.3062098193 | DN15: -0.3062098193 | DO15: -0.3062098193 | DP15: -0.3062098193 | DQ15: -0.3062098193 | DR15: -0.3062098193 | DS15: -0.3062098193 | DT15: -0.3062098193 | DU15: 1.008209828e+10 | DV15: 8882396744 | DW15: 1199701539 | DX15: 24 | DY15: 120 | DZ15: 0.02
B18: Chart Label | C18: Benefits
B19: Chart Label | C19: Net Benefits
B20: Chart Label | C20: Costs
C79: Five Percent Penetration | E79: Ten Percent Penetration
C80: Lower Avoided Costs | D80: Higher Avoided Costs | E80: Lower Avoided Costs | F80: Higher Avoided Costs
B81: PVRR Without PV ($ Mil) | C81: =$DU$10 -> 1.008209828e+10 | D81: =DU13 -> 1.008209828e+10 | E81: =DU11 -> 1.008209828e+10 | F81: =DU13 -> 1.008209828e+10
B82: PVRR With PV ($ Mil) | C82: =$DV$10 -> 9938655708 | D82: =$DV$14 -> 9482247514 | E82: =DV11 -> 9795213133 | F82: =DV14 -> 9482247514
B83: Net Benefits ($ Mil) | C83: =C81-C82 -> 143442575.4 | D83: =D81-D82 -> 599850769.6 | E83: 286885150.7 | F83: 599850769.6
B84: Benefit-Cost Ratio | C84: =$DX$10 -> 12 | D84: =DX13 -> 24 | E84: =DX11 -> 12 | F84: =DX15 -> 24
B85: Cumulative Rate Impact by 2024 | C85: =DT10/Reference!$C$18 -> 0.01783344648 | D85: =DT13/Reference!$C$18 -> -0.006837715277 | E85: =DT11/Reference!$C$18 -> 0.03717038593 | F85: =DT14/Reference!$C$18 -> -0.01425190111
